{"text_format":"1","workbook":"xlsx","n_sheets":6,"sheets":["Příkaz","Vyúčtování test","Vyúčtování","Zpráva o cestě","Kurzy CNB","List1"],"not_rendered":{"charts":0,"images":1,"macros":1,"external_links":1,"defined_names":5,"comments":3,"pivot_tables":0},"unopened":[],"bounds":{"document_bytes":16777216,"sheet_cells":100000,"rows_first":2000,"rows_last":500,"rows_between":2000,"halvings":0,"cell_chars":16384,"cell_head_chars":4096},"cells_cut":0,"cells_raw":0,"read":"whole","date_system":"1900"}

{"sheet":"Příkaz","index":0,"n_rows":79,"n_cols":26,"rows_kept":79,"cut":false,"hidden":false,"merged":[[0,10,0,17],[25,3,25,15],[3,1,3,2],[3,3,3,9],[3,11,3,17],[5,5,5,6],[5,7,5,8],[5,9,5,17],[13,1,13,2],[13,5,13,6],[13,7,13,8],[1,1,1,17],[7,1,7,2],[7,3,7,17],[9,3,9,17],[11,1,11,3],[13,9,13,17],[15,3,15,17],[15,1,15,2],[17,1,17,5],[19,1,19,15],[33,1,33,2],[33,3,33,5],[17,8,17,12],[17,13,17,15],[23,1,23,2],[25,1,25,2],[21,1,21,9],[21,10,21,17],[29,1,29,3],[29,5,29,17],[27,3,27,15],[27,1,27,2],[23,3,23,15],[49,1,49,6],[49,7,49,8],[58,9,58,17],[57,1,57,3],[39,5,39,17],[39,1,39,2],[41,5,41,17],[43,1,43,2],[43,5,43,7],[43,9,43,10],[43,11,43,17],[47,1,47,3],[47,5,47,17],[45,13,45,17],[45,9,45,12],[51,2,52,17],[53,2,53,17],[55,1,55,17],[78,1,78,7],[70,1,70,7],[70,10,70,17],[74,10,74,17],[78,10,78,17],[74,1,74,7],[60,1,67,17],[58,1,58,3],[9,1,9,2],[33,23,33,24],[45,1,45,4],[45,5,45,8],[31,10,31,15],[37,1,38,17],[31,6,31,8],[41,1,41,2],[36,1,36,17],[34,14,34,17],[33,14,33,17],[31,1,31,5],[34,3,34,5],[11,4,11,17],[33,9,33,10],[33,6,33,8]]}
[null,null,null,null,null,null,null,null,null,null,"Příloha OD  č. 1/2022\n\nEvidenční číslo:"]
[null,"CESTOVNÍ  PŘÍKAZ K USKUTEČNĚNÍ ZAHRANIČNÍ PRACOVNÍ CESTY"]
[]
[null,"Jméno a příjmení:",null,null,null,null,null,null,null,null,"Útvar:"]
[]
[null,"Zahájení cesty",null,"Datum:",null,null,null,"Místo:"]
[]
[null,"Místo konání:",null,null,null,null,null,null,null,null,null,null,null,null,null,null,null,null,null,null,null,null,null,"Stát, místo, pořadatel"]
[]
[null,"Název akce/Účel:"]
[]
[null,"Očekávaný přínos/výstup:"]
[]
[null,"Ukončení cesty",null,"Datum:",null,null,null,"Místo:"]
[]
[null,"Jízdné hradí:"]
[]
[null,"Návrh na určení dopravního prostředku:",null,null,null,null,"A",null,{"$f":"IF(G18<>\"\",(VLOOKUP(G18,List1!B3:C11,2,FALSE)),\"\")","v":"Autobus"},null,null,null,null,{"$f":"IF(G18=\"V\",\"Jízdenku zařizuje:\",IF(G18=\"A\",\"Jízdenku zařizuje:\",IF(G18=\"L\",\"Letenku zařizuje:\",\"\")))","v":"Jízdenku zařizuje:"},null,null,null,"ZO PF UK"]
[]
[null,"Předpokládaná výše jízdních výdajů  za jehož použití mají být poskytnuty náhrady jízdních výdajů:",null,null,null,null,null,null,null,null,null,null,null,null,null,null,null,0]
[]
[null,"Úhrada ostatních výdajů (PF UK, grant nebo projekt)",null,null,null,null,null,null,null,null,"Předpokládáná výše ostatních výdajů v Kč"]
[]
[null,"Ubytování hradí:",null,null,null,null,null,null,null,null,null,null,null,null,null,null,null,null,null,null,null,null,null,"(PF UK, grant nebo projekt)",null,"částka v Kč"]
[null,null,null,null,null,null,null,null,null,null,null,null,null,null,null,null,null,null,null,null,null,null,null,null,null,"částka v Kč"]
[null,"Stravné hradí:",null,null,null,null,null,null,null,null,null,null,null,null,null,null,null,null,null,null,null,null,null,"(PF UK, grant nebo projekt)",null,"částka v Kč"]
[null,null,null,null,null,null,null,null,null,null,null,null,null,null,null,null,null,null,null,null,null,null,null,null,null,"částka v Kč"]
[null,"Nutné vedl. výd. hradí:",null,null,null,null,null,null,null,null,null,null,null,null,null,null,null,null,null,null,null,null,null,"(PF UK, grant nebo projekt)",null,"částka v Kč"]
[]
[null,"Nutné vedlejší výdaje specifikace:",null,null,null,null,null,null,null,null,null,null,null,null,null,null,null,null,null,null,null,null,null,"Specifikace"]
[]
[null,{"$f":"\"Cestovní pojištění (\"&List1!R2&\"), zajištuje a hradí:\"","v":"Cestovní pojištění (1 den), zajištuje a hradí:"},null,null,null,null,null,null,null,null,"Předpokládáné výdaje celkem",null,null,null,null,null,null,{"$f":"IF(OR(G18=\"SV\",G18=\"SJ\"),R24+R26+R28,R20+R24+R26+R28)","v":0}]
[]
[null,"Žádám o zálohu:",null,"Ne",null,null,"Výše zálohy:",null,null,0,null,null,"CZK",null,null,null,null,null,null,null,null,null,null,{"$f":"IF(D34<>\"\",IF(J34<>\"\",(IF(M34=\"CZK\",1,VLOOKUP(TODAY(),'Kurzy CNB'!$A$1:$AH$96,VLOOKUP(M34,List1!$S$4:$T$36,2,FALSE),TRUE)))*J34,\"\"),\"\")","v":0},null,"Výše v Kč podle naposledy aktualizovaného kurzu"]
[null,null,null,{"$f":"IF(AND(D34=\"Ano, na bank. Účet\",M34<>\"CZK\"),\"Na účet lze pouze CZK\",\"\")","v":""},null,null,null,null,null,null,null,null,null,null,{"$f":"IF(D34=\"Ano, na bank. Účet\",\"Číslo bankovního účtu\",\"Datum vyplacení\")","v":"Datum vyplacení"}]
[]
[null,"POUŽITÍ  SOUKROMÉHO  VOZIDLA NA PRACOVNÍ CESTU"]
[null,"Vyplní řidič vozidla (zaměstnanec) před cestou."]
[]
[null,"Vlastník  vozidla:"]
[]
[null,"Řidič vozidla:",null,null,null,{"$f":"IF(D4=\"\",\"\",D4)","v":""}]
[]
[null,"RZ vozidla:",null,null,null,null,null,null,null,"Typ vozu:"]
[]
[null,"Datum povinn. proškolení  řidiče:",null,null,null,null,null,null,null,"Číslo havarijní pojistky:"]
[]
[null,"Spolucestující:"]
[]
[null,"Prohlašuji, že vozidlo použité na této služební cestě",null,null,null,null,null,"NENÍ",null," v evidenci plátců silniční daně pro rok 2022."]
[null,"Prohlašuji, že mám platný řidičský průkaz."]
[null,"Přílohy: "," - kopie velkého technického průkazu (datum aktuální technické kontroly)\n - kopie dokladu o zaplacení havarijního pojištění (pokud jste už neodevzdali  na ekonomickém oddělení.)"]
[]
[null,null,{"$f":"IF(OR(G18=\"V\",G18=\"A - VV\",G18=\"V - VV\",G18=\"L - VV\",G18=\"A - VV\",G18=\"A\",G18=\"L\",),\" - doklad o předpokládané výši jízdních výdajů za dopravní prostředek, za jehož použití mají být poskytnuty náhrady jízdních výdajů\",\"\")","v":" - doklad o předpokládané výši jízdních výdajů za dopravní prostředek, za jehož použití mají být poskytnuty náhrady jízdních výdajů"}]
[null,{"$f":"IFERROR(\"Prohlašuji, že podám vyúčtování pracovní cesty a zprávu pracovní cestě nejpozději do \" &TEXT(List1!AC1,\"dd.mm.rrrr\")&\".\",\"\")","v":""}]
[null,{"$f":"\"Žádám o náhradu jízdních výdajů  \"&IF(G18=\"VV\",\"za každý kilometr jízdy sazbou základní náhrady a náhradou za spotřebované pohonné hmoty podle zákonných sazeb platných v době konání pracovní cesty.\",IF(OR(G18=\"V - VV\",G18=\"V\"),\"ve výši odpovídající ceně jízdenky za vlak do výše \" & R20 &\" Kč.\",IF(OR(G18=\"A - VV\",G18=\"A\"),\"ve výši odpovídající ceně jízdenky za autobus do výše \" &R20&\" Kč.\",IF(OR(G18=\"L - VV\",G18=\"L\"),\"ve výši odpovídající ceně letenky do výše \" &R20&\" Kč.\",\"- NE.\"))))","v":"Žádám o náhradu jízdních výdajů  ve výši odpovídající ceně jízdenky za autobus do výše 0 Kč."}]
[]
[]
[null,"V Praze dne",null,null,null,null,null,null,null,"Podpis zaměstnance"]
[]
[]
[]
[]
[]
[]
[]
[]
[]
[null,"Poznámka schvalujících"]
[]
[null,"Podpis  řešitele grantu nebo projektu",null,null,null,null,null,null,null,null,"Podpis přímého nadřízeného"]
[]
[]
[]
[null,"Podpis vedoucího zahraničního oddělení",null,null,null,null,null,null,null,null,"Podpis tajemníka (správce rozpočtu)"]
[]
[]
[]
[null,"Podpis vedoucího ekonomického oddělení",null,null,null,null,null,null,null,null,"Podpis proděkanky"]

{"sheet":"Vyúčtování test","index":1,"n_rows":56,"n_cols":33,"rows_kept":56,"cut":false,"hidden":true,"merged":[[24,24,24,26],[16,19,17,19],[14,19,15,19],[12,19,13,19],[10,19,11,19],[8,19,9,19],[6,19,7,19],[8,1,9,1],[8,3,8,4],[8,6,9,6],[8,7,9,7],[8,9,9,9],[8,8,9,8],[18,10,19,10],[18,11,19,11],[14,13,15,13],[12,1,13,1],[12,11,13,11],[14,11,15,11],[14,12,15,12],[14,17,15,17],[15,3,15,4],[12,8,13,8],[10,1,11,1],[4,1,5,1],[4,3,4,4],[4,6,5,6],[4,7,5,7],[4,9,5,9],[6,1,7,1],[6,3,6,4],[6,6,7,6],[6,7,7,7],[6,9,7,9],[6,8,7,8],[55,9,56,17],[44,1,44,8],[48,9,48,17],[46,1,47,8],[49,9,49,17],[23,7,23,10],[34,1,34,4],[41,1,41,4],[51,1,51,5],[55,1,55,5],[30,1,31,4],[29,5,30,8],[31,7,31,8],[24,10,24,13],[14,8,15,8],[10,17,11,17],[18,13,19,13],[18,17,19,17],[5,3,5,4],[6,13,7,13],[6,17,7,17],[8,10,9,10],[8,11,9,11],[8,12,9,12],[8,13,9,13],[8,17,9,17],[9,3,9,4],[6,12,7,12],[7,3,7,4],[4,8,5,8],[6,10,7,10],[6,11,7,11],[11,3,11,4],[10,3,10,4],[10,6,11,6],[10,7,11,7],[10,9,11,9],[10,8,11,8],[4,20,5,20],[6,20,7,20],[8,20,9,20],[10,20,11,20],[12,20,13,20],[4,10,5,10],[4,11,5,11],[4,12,5,12],[4,13,5,13],[4,17,5,17],[4,19,5,19],[10,10,11,10],[10,11,11,11],[10,12,11,12],[10,13,11,13],[14,20,15,20],[16,20,17,20],[1,1,1,17],[2,1,3,1],[2,3,3,4],[2,6,3,6],[2,7,3,7],[2,8,3,8],[12,12,13,12],[16,12,17,12],[12,13,13,13],[12,17,13,17],[13,3,13,4],[14,1,15,1],[14,3,14,4],[14,6,15,6],[14,7,15,7],[14,9,15,9],[14,10,15,10],[12,3,12,4],[12,6,13,6],[12,7,13,7],[12,9,13,9],[12,10,13,10],[18,20,19,20],[16,13,17,13],[16,17,17,17],[17,3,17,4],[18,1,19,1],[18,3,18,4],[18,6,19,6],[18,7,19,7],[18,9,19,9],[16,6,17,6],[16,7,17,7],[16,9,17,9],[16,10,17,10],[16,11,17,11],[18,19,19,19],[18,12,19,12],[19,3,19,4],[16,8,17,8],[18,8,19,8],[16,1,17,1],[16,3,16,4]]}
[]
[null,"VYÚČTOVÁNÍ PRACOVNÍ CESTY"]
[null,"Datum",null,"Odjezd - příjezd",null,null,"Použitý dopr. prostředek2)","Vzdálenost\nv km 1)","Jízdné v případě AUV","Jízdné a místní přeprava","Stravné","Noc-\nležné","Nutné\nvedlejší výdaje","Celkem",null,null,null,"Upraveno"]
[null,null,null,null,null,"v hod.",null,null,null,"Kč","Kč","Kč","Kč","Kč",null,null,null,"Kč",null,null,null,null,null,null,"Vozidlo"]
[null,"2020-01-02","Odjezd",null,null,"10:00:00",null,null,{"$f":"IF(G5=\"VV\",ROUND(H5*$Z$14+H5*$Z$18,2),\"\")","v":""},null,{"$f":"R26","v":691},null,null,{"$f":"(N(I5)+J5+L5+M5)","v":0},null,null,{"$f":"VLOOKUP(P27,$AC$12:$AG$16,Q27+1,FALSE)","v":91},null,null,{"$f":"IF(B5=\"\",\"\",IF(B7=\"\",\"konec\",\"průběh\"))","v":"průběh"},{"$f":"VLOOKUP(IF(B5=\"\",0,(IF(B5=B3,1000,100)+IF(B5=B7,10,1))),List1!$B$22:$D$26,3,FALSE)","v":4},{"$f":"B5","v":"2020-01-02"},{"$f":"IF(V5<>0,B5+F5,\"\")","v":"2020-01-02T10:00:00"},null,"SPZ"]
[null,null,"Příjezd",null,null,"12:00:00",null,null,null,null,null,null,null,null,null,null,null,null,null,null,null,{"$f":"B5","v":"2020-01-02"},{"$f":"IF(V5<>0,B5+F6,\"\")","v":"2020-01-02T12:00:00"},null,"Palivo","nafta",null,null,null,{"$f":"AD8","v":43832}]
[null,"2020-01-05","Odjezd",null,null,"15:00:00",null,null,{"$f":"IF(G7=\"VV\",ROUND(H7*$Z$14+H7*$Z$18,2),\"\")","v":""},null,null,null,null,{"$f":"(N(I7)+J7+L7+M7)","v":0},null,null,{"$f":"VLOOKUP(P28,$AC$12:$AG$16,Q28+1,FALSE)","v":200},null,null,{"$f":"IF(B7=\"\",\"\",IF(B9=\"\",\"konec\",\"průběh\"))","v":"konec"},{"$f":"VLOOKUP(IF(B7=\"\",0,(IF(B7=B5,1000,100)+IF(B7=B9,10,1))),List1!$B$22:$D$26,3,FALSE)","v":4},{"$f":"B7","v":"2020-01-05"},{"$f":"IF(V7<>0,B7+F7,\"\")","v":"2020-01-05T15:00:00"},null,"spotřeba 1",3.1]
[null,null,"Příjezd",null,null,"20:00:00",null,null,null,null,null,null,null,null,null,null,null,null,null,null,null,{"$f":"B7","v":"2020-01-05"},{"$f":"IF(V7<>0,B7+F8,\"\")","v":"2020-01-05T20:00:00"},null,"spotřeba 2",null,null,null,null,{"$f":"MIN(B5:B20)","v":"2020-01-02"},{"$f":"MIN(W5:W20)","v":"2020-01-02T10:00:00"}]
[null,null,"Odjezd",null,null,null,null,null,{"$f":"IF(G9=\"VV\",ROUND(H9*$Z$14+H9*$Z$18,2),\"\")","v":""},null,null,null,null,{"$f":"(N(I9)+J9+L9+M9)","v":0},null,null,null,null,null,{"$f":"IF(B9=\"\",\"\",IF(B11=\"\",\"konec\",\"průběh\"))","v":""},{"$f":"VLOOKUP(IF(B9=\"\",0,(IF(B9=B7,1000,100)+IF(B9=B11,10,1))),List1!$B$22:$D$26,3,FALSE)","v":5},{"$f":"B9","v":"00:00:00"},{"$f":"IF(V9<>0,B9+F9,\"\")","v":""},null,"spotřeba 3",null,null,null,null,{"$f":"MAX(B5:B20)","v":"2020-01-05"},{"$f":"MAX(W5:W20)","v":"2020-01-05T20:00:00"}]
[null,null,"Příjezd",null,null,null,null,null,null,null,null,null,null,null,null,null,null,null,null,null,null,{"$f":"B9","v":"00:00:00"},{"$f":"IF(V9<>0,B9+F10,\"\")","v":""},null,"spotřeba 4"]
[null,null,"Odjezd",null,null,null,null,null,{"$f":"IF(G11=\"VV\",ROUND(H11*$Z$14+H11*$Z$18,2),\"\")","v":""},null,null,null,null,{"$f":"(N(I11)+J11+L11+M11)","v":0},null,null,null,null,null,{"$f":"IF(B11=\"\",\"\",IF(B13=\"\",\"konec\",\"průběh\"))","v":""},{"$f":"VLOOKUP(IF(B11=\"\",0,(IF(B11=B9,1000,100)+IF(B11=B13,10,1))),List1!$B$22:$D$26,3,FALSE)","v":5},{"$f":"B11","v":"00:00:00"},{"$f":"IF(V11<>0,B11+F11,\"\")","v":""},null,"Průměr - použitá spotřeba",{"$f":"ROUND(AVERAGE(Z7:Z10),2)","v":3.1},null,null,null,"0 - 5 hod","5 až 12 hod.","12 až 18 hod.","více než 18 hod."]
[null,null,"Příjezd",null,null,null,null,null,null,null,null,null,null,null,null,null,null,null,null,null,null,{"$f":"B11","v":"00:00:00"},{"$f":"IF(V11<>0,B11+F12,\"\")","v":""},null,"Cena paliva z dokladu",null,"Pokud nezadáte cenu paliva z dokladu, bude použita cena z vyhlášky",null,"počet jídel",0,"I","II","III"]
[null,null,"Odjezd",null,null,null,null,null,{"$f":"IF(G13=\"VV\",ROUND(H13*$Z$14+H13*$Z$18,2),\"\")","v":""},null,null,null,null,{"$f":"(N(I13)+J13+L13+M13)","v":0},null,null,null,null,null,{"$f":"IF(B13=\"\",\"\",IF(B15=\"\",\"konec\",\"průběh\"))","v":""},{"$f":"VLOOKUP(IF(B13=\"\",0,(IF(B13=B11,1000,100)+IF(B13=B15,10,1))),List1!$B$22:$D$26,3,FALSE)","v":5},{"$f":"B13","v":"00:00:00"},{"$f":"IF(V13<>0,B13+F13,\"\")","v":""},null,"Náhrady",null,null,null,0,0,90,140,200]
[null,null,"Příjezd",null,null,null,null,null,null,null,null,null,null,null,null,null,null,null,null,null,null,{"$f":"B13","v":"00:00:00"},{"$f":"IF(V13<>0,B13+F14,\"\")","v":""},null,"amortizace za km",4.0999999999999996,null,null,1,0,{"$f":"AE13*0.3","v":27},{"$f":"0.65*AF13","v":91},{"$f":"0.75*AG13","v":150}]
[null,null,"Odjezd",null,null,null,null,null,{"$f":"IF(G15=\"VV\",ROUND(H15*$Z$14+H15*$Z$18,2),\"\")","v":""},null,null,null,null,{"$f":"(N(I15)+J15+L15+M15)","v":0},null,null,null,null,null,{"$f":"IF(B15=\"\",\"\",IF(B17=\"\",\"konec\",\"průběh\"))","v":""},{"$f":"VLOOKUP(IF(B15=\"\",0,(IF(B15=B13,1000,100)+IF(B15=B17,10,1))),List1!$B$22:$D$26,3,FALSE)","v":5},{"$f":"B15","v":"00:00:00"},{"$f":"IF(V15<>0,B15+F15,\"\")","v":""},null,"benzin 95 oktanů",33.1,null,null,2,0,0,{"$f":"0.3*AF13","v":42},{"$f":"0.5*AG13","v":100}]
[null,null,"Příjezd",null,null,null,null,null,null,null,null,null,null,null,null,null,null,null,null,null,null,{"$f":"B15","v":"00:00:00"},{"$f":"IF(V15<>0,B15+F16,\"\")","v":""},null,"benzin 98 oktanů",37.1,null,null,3,0,0,0,{"$f":"0.25*AG13","v":50}]
[null,null,"Odjezd",null,null,null,null,null,{"$f":"IF(G17=\"VV\",ROUND(H17*$Z$14+H17*$Z$18,2),\"\")","v":""},null,null,null,null,0,null,null,null,null,null,{"$f":"IF(B17=\"\",\"\",IF(B19=\"\",\"konec\",\"průběh\"))","v":""},{"$f":"VLOOKUP(IF(B17=\"\",0,(IF(B17=B15,1000,100)+IF(B17=B19,10,1))),List1!$B$22:$D$26,3,FALSE)","v":5},{"$f":"B17","v":"00:00:00"},{"$f":"IF(V17<>0,B17+F17,\"\")","v":""},null,"nafta",33.6]
[null,null,"Příjezd",null,null,null,null,null,null,null,null,null,null,null,null,null,null,null,null,null,null,{"$f":"B17","v":"00:00:00"},{"$f":"IF(V17<>0,B17+F18,\"\")","v":""},null,"náhrada za km paliva",{"$f":"ROUND(IF(Z12=0,(VLOOKUP(Z6,Y15:Z17,2,FALSE)),Z12)*Z11/100,4)","v":1.0416000000000001},{"$f":"IF(Z12<>\"\",\"použita cena z dokladu\",\"použita cena z vyhlášky\")","v":"použita cena z vyhlášky"}]
[null,null,"Odjezd",null,null,null,null,null,{"$f":"IF(G19=\"VV\",ROUND(H19*$Z$14+H19*$Z$18,2),\"\")","v":""},null,null,null,null,0,null,null,null,null,null,{"$f":"IF(B19=\"\",\"\",IF(B21=\"\",\"konec\",\"průběh\"))","v":""},{"$f":"VLOOKUP(IF(B19=\"\",0,(IF(B19=B17,1000,100)+IF(B19=B21,10,1))),List1!$B$22:$D$26,3,FALSE)","v":5},{"$f":"B19","v":"00:00:00"},{"$f":"IF(V19<>0,B19+F19,\"\")","v":""}]
[null,null,"Příjezd",null,null,null,null,null,null,null,null,null,null,null,null,null,null,null,null,null,null,{"$f":"B19","v":"00:00:00"},{"$f":"IF(V19<>0,B19+F20,\"\")","v":""}]
[null,null,null,null,null,null,null,"Celkem",{"$f":"SUM(I5:I20)","v":0},{"$f":"SUM(J5:J20)","v":0},{"$f":"SUM(K5:K20)","v":691},{"$f":"IF(E23=\"ano\",0,SUM(L5:L20))","v":0},{"$f":"SUM(M5:M20)","v":0},{"$f":"SUM(I21:M21)","v":691}]
[null,"Strava poskytnuta bezplatně",null,null,"ano",null,null,"Záloha"]
[null,"Ubytování  poskytnuto bezplatně:*",null,null,"ano",null,null,{"$f":"IF((N21-N22)<0,\"Přeplatek (účtovatel vrátí)\", \"Doplatek (účtovateli bude doplaceno)\")","v":"Doplatek (účtovateli bude doplaceno)"},null,null,null,null,null,{"$f":"ABS(CEILING(N21-N22,1))","v":691}]
[null,null,null,null,null,null,null,null,null,null,null,null,null,null,null,{"$f":"IF(O28=\"\",1,IF((O27+O28)<=5/24,1,IF((O27+O28)<=12/24,2,IF((O27+O28)<=18/24,3,4))))","v":4},{"$f":"VLOOKUP((IF((P28+P27)>3,3,(P28+P27))),$AC$12:$AG$16,P24+1,FALSE)","v":150}]
[null,"V - Vlak","SV - služební vozidlo",null,"V - VV  - vlastní vozidlo s náhradou výdajů za vlak",null,null,null,null,null,"Bezplatně poskytnutá strava",null,null,null,null,"počet jídel","skupina","Celkem",null,null,null,null,null,null,"Přehled EU norem používaných v TP"]
[null,"A - autobus","CV -  spolujízda",null,"A - VV - vlastní vozidlo s náhradou výdajů za autobus",null,null,null,null,null,"Datum","snídaně","oběd","večeře","doba",null,null,{"$f":"SUM(R27:R43)","v":691},null,null,null,null,null,null,"80/1268/EHS","arit.průměr","3 údaje v TP"]
[null,"L - letadlo","VV - vlastní vozidlo",null,"L - VV - vlastní vozidlo s náhradou výdajů za letadlo",null,null,null,null,null,{"$f":"IF(AD8<>0,AD8,\"\")","v":"2020-01-02"},"ano",null,null,{"$f":"IF(K27<>\"\",IF(K28<>0,K27+1-AE8,AE9-AE8),\"\")","v":0.58333333333575865},{"$f":"IF($E$22=\"ne\",0,IF(LEFT(L27,1)=\"A\",1,0)+IF(LEFT(M27,1)=\"A\",1,0)+IF(LEFT(N27,1)=\"A\",1,0))","v":1},{"$f":"IF(OR(O27<=5/24+1/24/60/60/100,O27=\"\"),1,IF(O27<=12/24,2,IF(O27<=18/24,3,4)))","v":3},{"$f":"IF(AND(K29=\"\",(Q7+Q5)<Q24),0,Q5)","v":91},null,null,null,null,null,null,"93/116/ES","třetí údaj"]
[null,null,null,null,null,null,null,null,null,null,{"$f":"IF(($AD$8+List1!A2)<=$AD$9,$AD$8+List1!A2,\"\")","v":"2020-01-03"},null,null,null,{"$f":"IF(K28<>\"\",IF(K29<>\"\",1,$AE$9-K28),\"\")","v":1},0,{"$f":"IF(OR(O28<=5/24+1/24/60/60/100,O28=\"\"),1,IF(O28<=12/24,2,IF(O28<=18/24,3,4)))","v":4},{"$f":"IF(AND(K29=\"\",(Q7+Q5)<Q24),Q24,Q7)","v":200},null,null,null,null,null,null,"1999/100/ES","třetí údaj"]
[null,null,null,null,null,null,null,null,null,null,{"$f":"IF(($AD$8+List1!A3)<=$AD$9,$AD$8+List1!A3,\"\")","v":"2020-01-04"},null,null,null,1,0,4,{"$f":"VLOOKUP(P29,$AC$12:$AG$16,Q29+1,FALSE)","v":200},null,null,null,null,null,null,"2004/3/ES","třetí údaj"]
[null,"Zdroj financování (PF UK, grant, jiný zdroj):",null,null,null,"Zpráva o výsledku pracovní cesty byla podána dne: ",null,null,null,null,{"$f":"IF(($AD$8+List1!A4)<=$AD$9,$AD$8+List1!A4,\"\")","v":"2020-01-05"},null,null,null,0.83333333333575865,0,4,200,null,null,null,null,null,null,"EU 692/2008","třetí údaj"]
[null,null,null,null,null,null,null,null,null,null,{"$f":"IF(($AD$8+List1!A5)<=$AD$9,$AD$8+List1!A5,\"\")","v":""},null,null,null,"",0,1,0,null,null,null,null,null,null,"EU 692/2008A,…F","třetí údaj"]
[null,null,null,null,null,null,null,null,null,null,{"$f":"IF(($AD$8+List1!A6)<=$AD$9,$AD$8+List1!A6,\"\")","v":""},null,null,null,"",0,1,0,null,null,null,null,null,null,"EU/566/2011","třetí údaj"]
[null,null,null,null,null,null,null,null,null,null,{"$f":"IF(($AD$8+List1!A7)<=$AD$9,$AD$8+List1!A7,\"\")","v":""},null,null,null,"",0,1,0,null,null,null,null,null,null,"2007/46/ES","třetí údaj"]
[null,"Číslo bankovního účtu pro zasílání náhrad účtovateli:",null,null,null,null,null,null,null,null,{"$f":"IF(($AD$8+List1!A8)<=$AD$9,$AD$8+List1!A8,\"\")","v":""},null,null,null,"",0,1,0,null,null,null,null,null,null,"EHK 101,R101.00","třetí údaj"]
[null,null,null,null,null,null,null,null,null,null,{"$f":"IF(($AD$8+List1!A9)<=$AD$9,$AD$8+List1!A9,\"\")","v":""},null,null,null,"",0,1,0,null,null,null,null,null,null,"459/2012/EU","třetí údaj"]
[null,null,null,null,null,null,null,null,null,null,{"$f":"IF(($AD$8+List1!A10)<=$AD$9,$AD$8+List1!A10,\"\")","v":""},null,null,null,"",0,1,0,null,null,null,null,null,null,"630/2012/EU ","třetí údaj"]
[null,"Prohlašuji, že jsem všechny údaje uvedl úplně a správně.",null,null,null,null,null,null,null,null,{"$f":"IF(($AD$8+List1!A11)<=$AD$9,$AD$8+List1!A11,\"\")","v":""},null,null,null,"",0,1,0,null,null,null,null,null,null,"EU195/2013","třetí údaj"]
[null,null,null,null,null,null,null,null,null,null,{"$f":"IF(($AD$8+List1!A12)<=$AD$9,$AD$8+List1!A12,\"\")","v":""},null,null,null,"",0,1,0,null,null,null,null,null,null,"715/2007/ES","třetí údaj"]
[null,null,null,null,null,null,null,null,null,null,{"$f":"IF(($AD$8+List1!A13)<=$AD$9,$AD$8+List1!A13,\"\")","v":""},null,null,null,"",0,1,0,null,null,null,null,null,null,"EU136/2014","třetí údaj"]
[null,null,null,null,null,null,null,null,null,null,{"$f":"IF(($AD$8+List1!A14)<=$AD$9,$AD$8+List1!A14,\"\")","v":""},null,null,null,"",0,1,0,null,null,null,null,null,null,"EU2016/646","třetí údaj"]
[null,null,null,null,null,null,null,null,null,null,{"$f":"IF(($AD$8+List1!A15)<=$AD$9,$AD$8+List1!A15,\"\")","v":""},null,null,null,"",0,1,0,null,null,null,null,null,null,"EU2017/1347","třetí údaj"]
[null,"Datum a podpis účtovatele",null,null,null,null,null,null,null,null,{"$f":"IF(($AD$8+List1!A16)<=$AD$9,$AD$8+List1!A16,\"\")","v":""},null,null,null,"",0,1,0,null,null,null,null,null,null,"EU2015/45","třetí údaj"]
[null,null,null,null,null,null,null,null,null,null,{"$f":"IF(($AD$8+List1!A17)<=$AD$9,$AD$8+List1!A17,\"\")","v":""},null,null,null,"",0,1,0,null,null,null,null,null,null,"jiná norma","arit.průměr"]
[]
[]
[]
[null,"Se způsobem provedení vyučtování souhlasí:"]
[]
[]
[null,null,null,null,null,null,null,null,null,"Podpis přímého nadřízeného nebo řešitele grantu, projektu…"]
[]
[null,"Datum a podpis správce rozpočtu (tajemníka)"]
[]
[]
[]
[null,"Podpis vedoucího ekonom. odd. ",null,null,null,null,null,null,null,"Podpis zaměstnance, který kontroloval \na upravil vyúčtování (pokladní)"]

{"sheet":"Vyúčtování","index":2,"n_rows":60,"n_cols":46,"rows_kept":60,"cut":false,"hidden":false,"merged":[[0,45,0,49],[6,26,9,28],[0,8,0,14],[30,1,30,6],[1,1,1,14],[3,13,3,14],[11,1,11,3],[7,1,7,3],[10,1,10,3],[4,13,4,14],[4,1,4,3],[4,4,4,10],[6,6,6,10],[5,13,6,14],[9,13,9,14],[8,13,8,14],[26,1,27,2],[19,1,19,2],[21,9,22,9],[26,3,26,4],[27,3,27,4],[23,3,23,4],[19,3,19,4],[21,3,21,4],[22,3,22,4],[24,3,24,4],[2,1,2,3],[2,4,2,10],[3,1,3,3],[3,4,3,10],[8,6,8,12],[28,36,28,38],[7,6,7,10],[6,31,7,31],[9,1,9,3],[6,32,7,32],[9,6,9,10],[9,18,9,19],[20,1,23,2],[24,1,25,2],[16,1,16,2],[28,1,28,6],[19,10,19,14],[24,10,24,14],[6,1,6,3],[13,1,13,3],[8,1,8,3],[7,38,9,50],[25,3,25,4],[20,3,20,4],[15,5,15,6],[10,10,10,14],[15,12,15,14],[11,7,11,8],[16,5,16,6],[18,1,18,14],[15,1,15,2],[15,9,15,10],[16,9,16,10],[59,5,61,9],[59,1,61,3],[55,1,56,3],[46,1,47,8],[4,32,5,32],[4,31,5,31],[8,18,8,19],[55,5,56,8],[33,1,35,8],[50,1,51,3],[50,5,50,8],[37,1,37,6],[38,1,39,4],[41,1,43,8],[29,1,29,6],[5,6,5,10]]}
[null,null,null,null,null,null,null,null,"Příloha OD  č. 1/2022",null,null,null,null,null,null,null,null,null,null,null,null,null,null,null,null,null,null,{"$f":"\"Kurzy ČNB jsou aktualizovány k \"&TEXT(MAX('Kurzy CNB'!$A$2:$A$400),\"dd.mm.rrrr\")","v":"Kurzy ČNB jsou aktualizovány k 17.02.2022"},null,null,null,null,null,null,{"$f":"60*60*24","v":86400},null,null,null,null,null,null,null,null,null,null,{"$f":"IFERROR(\"Vyúčtování pracovní cesty a zprávu o pracovní cestě je nutné odevzdat nejpozději do \" &TEXT(List1!$AC$1,\"dd.mm.rrrr\")&\".\",\"\")","v":""}]
[null,"VYÚČTOVÁNÍ ZAHRANIČNÍ PRACOVNÍ CESTY"]
[null,"Jméno a příjmení",null,null,{"$f":"T(Příkaz!D4)","v":""}]
[null,"Název akce/Účel:",null,null,{"$f":"T(Příkaz!D10)","v":""},null,null,null,null,null,null,null,null,"stát",null,null,null,null,null,null,null,null,null,null,null,null,null,null,null,null,null,null,null,null,null,null,"Vozidlo"]
[null,"Místo konání akce",null,null,{"$f":"T(Příkaz!D8)","v":""},null,null,null,null,null,null,null,null,"Německo",null,null,null,null,null,null,null,null,null,null,null,null,null,null,null,null,null,null,null,null,null,null,"SPZ"]
[null,null,null,null,"datum","čas","místo",null,null,null,null,null,null,"základní sazba zahraničního stravného",null,null,null,null,null,null,null,null,null,null,null,null,null,null,null,null,null,null,null,null,null,null,"Palivo","benzin 95 oktanů",null,null,null,{"$f":"AP8","v":0}]
[null,"Zahájení cesty",null,null,"2022-01-03","12:00:00",null,null,null,null,null,null,null,null,null,null,null,null,{"$f":"E7+F7","v":"2022-01-03T12:00:00"},null,null,null,null,null,null,null,"Neposkytnutí náhrady cestovních výdajů\n dle čl.15 OD 1/2022 v případě, že byla zaměstnanci poskytnuta náhrada v zahraničí nebo z jiného zdroje",null,null,null,null,null,null,null,null,null,"spotřeba 1",2,"Doplňte kombinovanou spotřebu dle norem EU z TP a ostatní pole ponechte prázdné"]
[null,"Překročení státní hranice/odlet",null,null,"2022-01-03","12:00:00",{"$f":"IF(S8<S7,\"překročení hranice nemůže být před začátkem cesty\",\"\")","v":""},null,null,null,null,null,null,{"$f":"VLOOKUP(N5,List1!V3:Y180,4,FALSE)","v":45},{"$f":"VLOOKUP(N5,List1!V3:Y180,2,FALSE)","v":"EUR"},null,null,null,{"$f":"E8+F8","v":"2022-01-03T12:00:00"},null,null,null,null,null,null,null,null,null,null,null,null,null,null,null,null,null,"spotřeba 2",null,"Pokud údaj o kombinované spotřebě v technickém průkazu není, vypočte se spotřeba PHM vozidla aritmetickým průměrem ze všech údajů o spotřebě uvedených v technickém průkazu."]
[null,"Překročení státní hranice/přílet",null,null,"2022-01-03","13:00:00",{"$f":"IF(OR(E7>MAX('Kurzy CNB'!A2:A400),E16>MAX('Kurzy CNB'!A2:A400)),\"Začátek cesty nebo datum zálohy je v období mimo načtené kurzy ČNB\",\"\")","v":""},null,null,null,null,null,null,"použit kurz ze dne",null,null,null,null,{"$f":"E9+F9","v":"2022-01-03T13:00:00"},null,null,null,null,null,null,null,null,null,null,null,null,null,null,null,null,null,"spotřeba 3"]
[null,"Ukončení cesty",null,null,"2022-01-03","13:00:00",null,null,null,null,null,null,null,{"$f":"IF(AND(E16<>\"\",E14<>\"NE\",OR(F16<>\"\",F17<>\"\")),E16,E7)","v":"2022-01-03"},null,null,null,null,{"$f":"E10+F10","v":"2022-01-03T13:00:00"},null,null,null,null,null,null,null,null,null,null,null,null,null,null,null,null,null,"spotřeba 4"]
[null,"Strava poskytnuta bezplatně",null,null,"ano",null,"Celková vzdálenost v km  při použití VV",null,null,null,"Poskytnuté náhrady za výdaje:",null,null,null,null,null,null,null,null,null,null,null,null,null,null,null,"nárok","náhrada","k vyúčtování",null,null,null,null,null,null,null,"Průměr - použitá spotřeba",{"$f":"ROUND(AVERAGE(AL7:AL10),2)","v":2},null,null,null,"0 - 5 hod","5 až 12 hod.","12 až 18 hod.","více než 18 hod."]
[null,"Použitý dopr. prostředek",null,null,"VV",null,null,{"$f":"IF(E12=\"VV\",CEILING(G12*$AL$16+G12*$AL$21,0.01),\"\")","v":0},null,null,"ubytování",null,"EUR",null,{"$f":"IF(N12<>\"\",IF(M12<>\"\",(IF(M12=\"CZK\",1,VLOOKUP($N$10,'Kurzy CNB'!$A$1:$AH$96,VLOOKUP(M12,List1!$S$4:$T$36,2,FALSE),TRUE)))*N12/VLOOKUP(M12,List1!$S$3:$U$36,3,FALSE),0),0)","v":0},null,null,null,null,null,null,null,null,null,null,null,{"$f":"SUM(I25:I26)","v":0},{"$f":"O12","v":0},{"$f":"IF((AA12-AB12)<0,0,AA12-AB12)","v":0},null,null,null,null,null,null,null,"Cena paliva z dokladu",1.1220000000000001,"EUR",null,"počet jídel",0,"I","II","III"]
[null,null,null,null,null,null,null,null,null,null,"jízdné",null,"EUR",null,{"$f":"IF(N13<>\"\",IF(M13<>\"\",(IF(M13=\"CZK\",1,VLOOKUP($N$10,'Kurzy CNB'!$A$1:$AH$96,VLOOKUP(M13,List1!$S$4:$T$36,2,FALSE),TRUE)))*N13/VLOOKUP(M13,List1!$S$3:$U$36,3,FALSE),0),0)","v":0},null,null,null,null,null,null,null,null,null,null,null,{"$f":"SUM(I21:I24)","v":0},{"$f":"O13","v":0},{"$f":"IF((AA13-AB13)<0,0,AA13-AB13)","v":0},null,null,null,null,null,null,null,"Cena paliva z dokladu CZK",{"$f":"CEILING(IF(AL12<>\"\",IF(AM12<>\"\",(IF(AM12=\"CZK\",1,VLOOKUP($N$10,'Kurzy CNB'!$A$1:$AH$96,VLOOKUP(AM12,List1!$S$4:$T$36,2,FALSE),TRUE)))*AL12/VLOOKUP(AM12,List1!$S$3:$U$36,3,FALSE),0),0),0.0001)","v":27.848100000000002},null,null,0,0,108,160,246]
[null,"Poskytnuta záloha",null,null,"ne",null,"částka","měna","kurz ČNB",null,"ostatní",null,"EUR",null,{"$f":"IF(N14<>\"\",IF(M14<>\"\",(IF(M14=\"CZK\",1,VLOOKUP($N$10,'Kurzy CNB'!$A$1:$AH$96,VLOOKUP(M14,List1!$S$4:$T$36,2,FALSE),TRUE)))*N14/VLOOKUP(M14,List1!$S$3:$U$36,3,FALSE),0),0)","v":0},null,null,null,null,null,null,null,null,null,null,null,{"$f":"SUM(I27:I28)","v":0},0,0,null,null,null,null,null,null,null,"Náhrady",null,null,null,1,0,{"$f":"AQ13*0.3","v":32.4},{"$f":"0.65*AR13","v":104},{"$f":"0.75*AS13","v":184.5}]
[]
[null,"Záloha 1 ",null," vydaná dne",null,null,null,"EUR",{"$f":"IF(OR(E16=\"\",H16=\"CZK\"),1,VLOOKUP(E16,'Kurzy CNB'!$A$1:$AH$96,VLOOKUP(H16,List1!$S$4:$T$36,2,FALSE),TRUE))","v":1},{"$f":"CEILING(I16*F16,0.001)","v":0},null,null,"Poskytnuté náhrady za stravné",null,null,null,null,null,null,null,null,null,null,null,null,null,null,null,null,null,null,null,null,null,null,null,"amortizace za km",4.7,null,null,2,0,0,{"$f":"0.3*AR13","v":48},{"$f":"0.5*AS13","v":123}]
[null,"Záloha 2",null," vydaná dne",{"$f":"E16","v":"00:00:00"},null,null,"CZK",{"$f":"IF(OR(E17=\"\",H17=\"CZK\",H17=\"\"),1,VLOOKUP(E17,'Kurzy CNB'!$A$1:$AH$96,VLOOKUP(H17,List1!$S$4:$T$36,2,FALSE),TRUE))","v":1},{"$f":"CEILING(I17*F17,0.001)","v":0},null,null,"EUR",null,{"$f":"IF(N17<>\"\",IF(M17<>\"\",(IF(M17=\"CZK\",1,VLOOKUP($N$10,'Kurzy CNB'!$A$1:$AH$96,VLOOKUP(M17,List1!$S$4:$T$36,2,FALSE),TRUE)))*N17/VLOOKUP(M17,List1!$S$3:$U$36,3,FALSE),0),0)","v":0},null,null,null,null,null,null,null,null,null,null,null,{"$f":"SUM(O22:O23)","v":372.3},{"$f":"O17","v":0},{"$f":"IF((AA17-AB17)<0,0,AA17-AB17)","v":372.3},null,null,null,null,null,null,null,"benzin 95 oktanů",37.1,null,null,3,0,0,0,{"$f":"0.25*AS13","v":61.5}]
[null,null,null,null,null,null,null,null,null,null,null,null,null,null,null,null,null,null,null,null,null,null,null,null,null,null,null,"Celkem",{"$f":"AC12+AC13+AC14+AC17","v":372.3},null,null,null,null,null,null,null,"benzin 98 oktanů",40.5]
[null,"VYÚČTOVÁNÍ",null,null,null,null,null,null,null,null,null,null,null,null,null,null,null,null,null,null,null,null,null,null,null,null,null,null,null,null,null,null,null,null,null,null,"nafta",36.1]
[null,null,null,"Popis",null,"měna","částka","měna","částka",null,"Stravné",null,null,null,null,null,null,null,null,null,null,null,null,null,null,null,null,null,null,null,null,null,null,null,null,null,"elektřina",4.0999999999999996]
[null,"Jízdní výdaje",null,"Vlastní vozidlo - VV",null,"CZK",{"$f":"H12","v":0},"CZK",{"$f":"G21","v":0},null,"měna",null,"částka","měna","částka",null,null,null,null,null,null,null,null,null,null,null,null,null,null,null,null,null,null,null,null,null,"náhrada za km paliva",{"$f":"ROUND(IF(AL13=0,(VLOOKUP(AL6,AK17:AL20,2,FALSE)),AL13)*AL11/100,4)","v":0.55700000000000005},{"$f":"IF(AL13<>\"\",\"použita cena z dokladu\",\"použita cena z vyhlášky\")","v":"použita cena z dokladu"}]
[null,null,null,null,null,"CZK",null,"CZK",{"$f":"IF(G22<>\"\",IF(F22<>\"\",(IF(F22=\"CZK\",1,VLOOKUP($N$10,'Kurzy CNB'!$A$1:$AH$96,VLOOKUP(F22,List1!$S$4:$T$36,2,FALSE),TRUE)))*G22/VLOOKUP(F22,List1!$S$3:$U$36,3,FALSE),\"\"),\"\")","v":""},null,"CZK",null,{"$f":"CEILING(SUM(AA27:AA55),0.01)","v":0},"CZK",{"$f":"M22","v":0}]
[null,null,null,null,null,"EUR",null,"CZK",{"$f":"IF(G23<>\"\",IF(F23<>\"\",(IF(F23=\"CZK\",1,VLOOKUP($N$10,'Kurzy CNB'!$A$1:$AH$96,VLOOKUP(F23,List1!$S$4:$T$36,2,FALSE),TRUE)))*G23/VLOOKUP(F23,List1!$S$3:$U$36,3,FALSE),\"\"),\"\")","v":""},null,{"$f":"O8","v":"EUR"},null,{"$f":"CEILING(SUM(AB27:AB55),0.01)","v":15},"CZK",{"$f":"IF(M23<>\"\",VLOOKUP($N$10,'Kurzy CNB'!$A$1:$AH$96,VLOOKUP(K23,List1!$S$4:$T$36,2,FALSE),TRUE))*M23/VLOOKUP(K23,List1!$S$3:$U$36,3,FALSE)","v":372.3},null,null,null,null,null,null,null,null,null,null,null,null,null,null,null,null,null,null,null,null,null,null,null,null,null,null,"zahra"]
[null,null,null,null,null,null,null,"CZK",{"$f":"IF(G24<>\"\",IF(F24<>\"\",(IF(F24=\"CZK\",1,VLOOKUP($N$10,'Kurzy CNB'!$A$1:$AH$96,VLOOKUP(F24,List1!$S$4:$T$36,2,FALSE),TRUE)))*G24/VLOOKUP(F24,List1!$S$3:$U$36,3,FALSE),\"\"),\"\")","v":""}]
[null,"Výdaje za ubytování",null,null,null,"EUR",null,"CZK",{"$f":"IF(G25<>\"\",IF(F25<>\"\",(IF(F25=\"CZK\",1,VLOOKUP($N$10,'Kurzy CNB'!$A$1:$AH$96,VLOOKUP(F25,List1!$S$4:$T$36,2,FALSE),TRUE)))*G25/VLOOKUP(F25,List1!$S$3:$U$36,3,FALSE),\"\"),\"\")","v":""},null,"Bezplatně poskytnutá strava",null,null,null,null,null,null,null,null,null,null,null,"počet jídel",null,null,null,"CZK",{"$f":"O8","v":"EUR"},null,null,null,null,null,null,null,null,null,null,null,null,null,"0 - 1 hod","1 až 12 hod.","12 až 18 hod.","více než 18 hod."]
[null,null,null,null,null,null,null,"CZK",{"$f":"IF(G26<>\"\",IF(F26<>\"\",(IF(F26=\"CZK\",1,VLOOKUP($N$10,'Kurzy CNB'!$A$1:$AH$96,VLOOKUP(F26,List1!$S$4:$T$36,2,FALSE),TRUE)))*G26/VLOOKUP(F26,List1!$S$3:$U$36,3,FALSE),\"\"),\"\")","v":""},null,"Datum",null,"snídaně","oběd","večeře","doba","začátek zahr","konec zahr","doba zahr","doba CR","přep zahr","přep CR",null,"kod zahr","kod tuz",null,"stravne CR","stravne zahr",null,null,null,null,null,null,null,null,null,null,null,null,"počet jídel",0,"I","II","III"]
[null,"Ostatní výdaje",null,null,null,"EUR",null,"CZK",{"$f":"IF(G27<>\"\",IF(F27<>\"\",(IF(F27=\"CZK\",1,VLOOKUP($N$10,'Kurzy CNB'!$A$1:$AH$96,VLOOKUP(F27,List1!$S$4:$T$36,2,FALSE),TRUE)))*G27/VLOOKUP(F27,List1!$S$3:$U$36,3,FALSE),\"\"),\"\")","v":""},null,{"$f":"IF(E7<>0,E7,\"\")","v":"2022-01-03"},null,null,null,null,{"$f":"IF(K27<>\"\",IF(K28<>\"\",K27+1-S7,S10-S7),\"\")","v":4.1666666664241347E-2},{"$f":"IF(OR($E$8>K27,$E$9<K27),\"\",IF(K27=$E$8,$S$8,K27))","v":"2022-01-03T12:00:00"},{"$f":"IF(OR($E$8>K27,$E$9<K27),\"\",IF(K27=$E$9,$S$9,K27+1))","v":"2022-01-03T13:00:00"},{"$f":" IF(Q27=\"\",\"\",R27-Q27)","v":4.1666666664241347E-2},{"$f":"IF(P27<>\"\",IF(S27<>\"\",P27-S27,P27),\"\")","v":0},{"$f":"IF(T27<5/24,S27,IF(S27<=(5/24+0.0000001),\"\",S27))","v":4.1666666664241347E-2},{"$f":"IF(T27>=5/24,IF(S27<=(5/24+0.0000001),T27+S27,T27),T27)","v":0},{"$f":"IF($E$11=\"ne\",0,IF(LEFT(M27,1)=\"A\",1,0)+IF(LEFT(N27,1)=\"A\",1,0)+IF(LEFT(O27,1)=\"A\",1,0))","v":0},{"$f":"IF(U27<>\"\",(IF(U27<(1/24-0.0000001),1,(IF(U27<=12/24,2,IF(U27<=18/24,3,4))))),\"\")","v":2},{"$f":"IF(V27<>\"\",(IF(V27<5/24,1,(IF(V27<=12/24,2,IF(V27<=18/24,3,4))))),\"\")","v":1},null,{"$f":"IF(Y27<>\"\",IF(X27=\"\",VLOOKUP(W27,$AO$12:$AS$17,Y27+1,FALSE),VLOOKUP(0,$AO$12:$AS$17,Y27+1)),\"\")","v":0},{"$f":"IF(X27=\"\",\"\",IF(Y27=1,VLOOKUP(W27,$AO$26:$AS$30,X27+1,FALSE),VLOOKUP(W27,$AO$26:$AS$30,3,FALSE)))","v":15},null,null,null,null,null,null,null,null,null,null,null,null,0,0,{"$f":"AS27/3","v":15},{"$f":"AS27*2/3","v":30},{"$f":"N8","v":45}]
[null,null,null,null,null,null,null,"CZK",{"$f":"IF(G28<>\"\",IF(F28<>\"\",(IF(F28=\"CZK\",1,VLOOKUP($N$10,'Kurzy CNB'!$A$1:$AH$96,VLOOKUP(F28,List1!$S$4:$T$36,2,FALSE),TRUE)))*G28/VLOOKUP(F28,List1!$S$3:$U$36,3,FALSE),\"\"),\"\")","v":""},null,{"$f":"IF(($E$7+List1!A2)<=$E$10,$E$7+List1!A2,\"\")","v":""},null,null,null,null,{"$f":"IF(K28<>\"\",IF(K29<>\"\",1,$S$10-K28),\"\")","v":""},{"$f":"IF(OR($E$8>K28,$E$9<K28),\"\",IF(K28=$E$8,$S$8,K28))","v":""},{"$f":"IF(OR($E$8>K28,$E$9<K28),\"\",IF(K28=$E$9,$S$9,K28+1))","v":""},{"$f":" IF(Q28=\"\",\"\",R28-Q28)","v":""},"",{"$f":"IF(T28<5/24,S28,IF(S28<=(5/24+0.0000001),\"\",S28))","v":""},{"$f":"IF(T28>=5/24,IF(S28<=(5/24+0.0000001),T28+S28,T28),T28)","v":""},0,{"$f":"IF(U28<>\"\",(IF(U28<(1/24-0.0000001),1,(IF(U28<=12/24,2,IF(U28<=18/24,3,4))))),\"\")","v":""},{"$f":"IF(V28<>\"\",(IF(V28<5/24,1,(IF(V28<=12/24,2,IF(V28<=18/24,3,4))))),\"\")","v":""},null,"",{"$f":"IF(X28=\"\",\"\",IF(Y28=1,VLOOKUP(W28,$AO$26:$AS$30,X28+1,FALSE),VLOOKUP(W28,$AO$26:$AS$30,3,FALSE)))","v":""},null,null,null,null,null,null,null,null,null,null,null,null,1,0,{"$f":"AQ27*0.3","v":4.5},{"$f":"0.65*AR27","v":19.5},{"$f":"0.75*AS27","v":33.75}]
[null,"Celkem (včetně stravného)",null,null,null,null,null,"CZK",{"$f":"AC12+AC13+AC14+AC17","v":372.3},null,{"$f":"IF(($E$7+List1!A3)<=$E$10,$E$7+List1!A3,\"\")","v":""},null,null,null,null,"","",{"$f":"IF(OR($E$8>K29,$E$9<K29),\"\",IF(K29=$E$9,$S$9,K29+1))","v":""},"","",{"$f":"IF(T29<5/24,S29,IF(S29<=(5/24+0.0000001),\"\",S29))","v":""},"",0,"","",null,"","",null,null,null,null,null,null,null,null,"Přehled EU norem používaných v TP",null,null,null,2,0,0,{"$f":"0.3*AR27","v":9},{"$f":"0.5*AS27","v":22.5}]
[null,"Záloha",null,null,null,null,null,"CZK",{"$f":"IF(E14=\"ne\",0,CEILING(J16+J17,0.01))","v":0},null,{"$f":"IF(($E$7+List1!A4)<=$E$10,$E$7+List1!A4,\"\")","v":""},null,null,null,null,"","","","","","","",0,"","",null,"","",null,null,null,null,null,null,null,null,"80/1268/EHS","arit.průměr","3 údaje v TP",null,3,0,0,0,{"$f":"0.25*AS27","v":11.25}]
[null,{"$f":"IF(I31<0,\"Přeplatek (zaměstnanec vrátí)\", \"Doplatek (zaměstnanci bude doplaceno)\")","v":"Doplatek (zaměstnanci bude doplaceno)"},null,null,null,null,null,"CZK",{"$f":"(I29-I30)/(IF(H31=\"CZK\",1,VLOOKUP($N$10,'Kurzy CNB'!$A$1:$AH$96,VLOOKUP(H31,List1!$S$4:$T$36,2,FALSE),TRUE))/VLOOKUP(H31,List1!$S$3:$U$36,3,FALSE))","v":372.3},null,{"$f":"IF(($E$7+List1!A5)<=$E$10,$E$7+List1!A5,\"\")","v":""},null,null,null,null,"","","","","","","",0,"","",null,"","",null,null,null,null,null,null,null,null,"93/116/ES","třetí údaj"]
[null,null,null,null,null,null,null,null,null,null,{"$f":"IF(($E$7+List1!A6)<=$E$10,$E$7+List1!A6,\"\")","v":""},null,null,null,null,"","","","","","","",0,"","",null,"","",null,null,null,null,null,null,null,null,"1999/100/ES","třetí údaj"]
[null,"Zdroj financování (PF UK, grant nebo projekt):",null,null,null,null,null,null,null,null,{"$f":"IF(($E$7+List1!A7)<=$E$10,$E$7+List1!A7,\"\")","v":""},null,null,null,null,"","","","","","","",0,"","",null,"","",null,null,null,null,null,null,null,null,"2004/3/ES","třetí údaj"]
[null,null,null,null,null,null,null,null,null,null,{"$f":"IF(($E$7+List1!A8)<=$E$10,$E$7+List1!A8,\"\")","v":""},null,null,null,null,"","","","","","","",0,"","",null,"","",null,null,null,null,null,null,null,null,"EU 692/2008","třetí údaj"]
[null,null,null,null,null,null,null,null,null,null,{"$f":"IF(($E$7+List1!A9)<=$E$10,$E$7+List1!A9,\"\")","v":""},null,null,null,null,"","","","","","","",0,"","",null,"","",null,null,null,null,null,null,null,null,"EU 692/2008A,…F","třetí údaj"]
[null,null,null,null,null,null,null,null,null,null,{"$f":"IF(($E$7+List1!A10)<=$E$10,$E$7+List1!A10,\"\")","v":""},null,null,null,null,"","","","","","","",0,"","",null,"","",null,null,null,null,null,null,null,null,"EU/566/2011","třetí údaj"]
[null,null,null,null,null,null,null,null,null,null,{"$f":"IF(($E$7+List1!A11)<=$E$10,$E$7+List1!A11,\"\")","v":""},null,null,null,null,"","","","","","","",0,"","",null,"","",null,null,null,null,null,null,null,null,"2007/46/ES","třetí údaj"]
[null,"Číslo bankovního účtu pro zasílání náhrad zaměstnanci:",null,null,null,null,null,null,null,null,{"$f":"IF(($E$7+List1!A12)<=$E$10,$E$7+List1!A12,\"\")","v":""},null,null,null,null,"","","","","","","",0,"","",null,"","",null,null,null,null,null,null,null,null,"EHK 101,R101.00","třetí údaj"]
[null,null,null,null,null,null,null,null,null,null,{"$f":"IF(($E$7+List1!A13)<=$E$10,$E$7+List1!A13,\"\")","v":""},null,null,null,null,"","","","","","","",0,"","",null,"","",null,null,null,null,null,null,null,null,"459/2012/EU","třetí údaj"]
[null,null,null,null,null,null,null,null,null,null,{"$f":"IF(($E$7+List1!A14)<=$E$10,$E$7+List1!A14,\"\")","v":""},null,null,null,null,"","","","","","","",0,"","",null,"","",null,null,null,null,null,null,null,null,"630/2012/EU ","třetí údaj"]
[null,null,null,null,null,null,null,null,null,null,{"$f":"IF(($E$7+List1!A15)<=$E$10,$E$7+List1!A15,\"\")","v":""},null,null,null,null,"","","","","","","",0,"","",null,"","",null,null,null,null,null,null,null,null,"EU195/2013","třetí údaj"]
[null,"Prohlašuji, že jsem všechny údaje uvedl úplně, a že je  zpráva ze zahraniční  pracovní cesty přiložena.",null,null,null,null,null,null,null,null,{"$f":"IF(($E$7+List1!A16)<=$E$10,$E$7+List1!A16,\"\")","v":""},null,null,null,null,"","","","","","","",0,"","",null,"","",null,null,null,null,null,null,null,null,"715/2007/ES","třetí údaj"]
[null,null,null,null,null,null,null,null,null,null,{"$f":"IF(($E$7+List1!A17)<=$E$10,$E$7+List1!A17,\"\")","v":""},null,null,null,null,"","","","","","","",0,"","",null,"","",null,null,null,null,null,null,null,null,"EU136/2014","třetí údaj"]
[null,null,null,null,null,null,null,null,null,null,{"$f":"IF(($E$7+List1!A18)<=$E$10,$E$7+List1!A18,\"\")","v":""},null,null,null,null,"","","","","",{"$f":"IF(T44<5/24,S44,IF(S44<=(5/24+0.0000001),\"\",S44))","v":""},"",0,"","",null,"","",null,null,null,null,null,null,null,null,"EU2016/646","třetí údaj"]
[null,null,null,null,null,null,null,null,null,null,{"$f":"IF(($E$7+List1!A19)<=$E$10,$E$7+List1!A19,\"\")","v":""},null,null,null,null,"","","","","",{"$f":"IF(T45<5/24,S45,IF(S45<=(5/24+0.0000001),\"\",S45))","v":""},"",0,"","",null,"","",null,null,null,null,null,null,null,null,"EU2017/1347","třetí údaj"]
[null,null,null,null,null,null,null,null,null,null,{"$f":"IF(($E$7+List1!A20)<=$E$10,$E$7+List1!A20,\"\")","v":""},null,null,null,null,"","","","","",{"$f":"IF(T46<5/24,S46,IF(S46<=(5/24+0.0000001),\"\",S46))","v":""},"",0,"","",null,"","",null,null,null,null,null,null,null,null,"EU2015/45","třetí údaj"]
[null,"Datum a podpis zaměstnance",null,null,null,null,null,null,null,null,{"$f":"IF(($E$7+List1!A21)<=$E$10,$E$7+List1!A21,\"\")","v":""},null,null,null,null,"","","","","","","",0,"","",null,"","",null,null,null,null,null,null,null,null,"jiná norma","arit.průměr"]
[null,null,null,null,null,null,null,null,null,null,{"$f":"IF(($E$7+List1!A22)<=$E$10,$E$7+List1!A22,\"\")","v":""},null,null,null,null,"","","","","","","",0,"","",null,"",""]
[null,null,null,null,null,null,null,null,null,null,{"$f":"IF(($E$7+List1!A23)<=$E$10,$E$7+List1!A23,\"\")","v":""},null,null,null,null,"","","","","","","",0,"","",null,"",""]
[null,null,null,null,null,null,null,null,null,null,{"$f":"IF(($E$7+List1!A24)<=$E$10,$E$7+List1!A24,\"\")","v":""},null,null,null,null,"","","","","","","",0,"","",null,"",""]
[null,"Podpis řešitele grantu nebo projektu",null,null,null,"Podpis vedoucího zahraničního oddělení",null,null,null,null,{"$f":"IF(($E$7+List1!A25)<=$E$10,$E$7+List1!A25,\"\")","v":""},null,null,null,null,"","","","","","","",0,"","",null,"",""]
[null,null,null,null,null,null,null,null,null,null,{"$f":"IF(($E$7+List1!A26)<=$E$10,$E$7+List1!A26,\"\")","v":""},null,null,null,null,"","","","","","","",0,"","",null,"",""]
[null,null,null,null,null,null,null,null,null,null,{"$f":"IF(($E$7+List1!A27)<=$E$10,$E$7+List1!A27,\"\")","v":""},null,null,null,null,"","","","","","","",0,"","",null,"",""]
[null,null,null,null,null,null,null,null,null,null,{"$f":"IF(($E$7+List1!A28)<=$E$10,$E$7+List1!A28,\"\")","v":""},null,null,null,null,"","","","","","","",0,"","",null,"",""]
[null,null,null,null,null,null,null,null,null,null,{"$f":"IF(($E$7+List1!A29)<=$E$10,$E$7+List1!A29,\"\")","v":""},null,null,null,null,"","","","","","","",0,"","",null,"",""]
[null,"Podpis přímého nadřízeného",null,null,null,"Podpis vedoucího ekonomického oddělení",null,null,null,null,{"$f":"IF(($E$7+List1!A30)<=$E$10,$E$7+List1!A30,\"\")","v":""},null,null,null,null,{"$f":"IF(K56<>\"\",IF(K57<>\"\",1,$S$10-K56),\"\")","v":""},{"$f":"IF(OR($E$8>K56,$E$9<K56),\"\",IF(K56=$E$8,$S$8,K56))","v":""},{"$f":"IF(OR($E$8>K56,$E$9<K56),\"\",IF(K56=$E$9,$S$9,K56+1))","v":""},{"$f":" IF(Q56=\"\",\"\",R56-Q56)","v":""},{"$f":"IF(P56<>\"\",IF(S56<>\"\",P56-S56,P56),\"\")","v":""},{"$f":"IF(T56<5/24,S56,IF(S56<=(5/24+0.0000001),\"\",S56))","v":""},{"$f":"IF(T56>=5/24,IF(S56<=(5/24+0.0000001),T56+S56,T56),T56)","v":""},{"$f":"IF($E$11=\"ne\",0,IF(LEFT(M56,1)=\"A\",1,0)+IF(LEFT(N56,1)=\"A\",1,0)+IF(LEFT(O56,1)=\"A\",1,0))","v":0},{"$f":"IF(U56<>\"\",(IF(U56<(1/24-0.0000001),1,(IF(U56<=12/24,2,IF(U56<=18/24,3,4))))),\"\")","v":""},{"$f":"IF(V56<>\"\",(IF(V56<5/24,1,(IF(V56<=12/24,2,IF(V56<=18/24,3,4))))),\"\")","v":""},null,{"$f":"IF(Y56<>\"\",IF(X56=\"\",VLOOKUP(W56,$AO$12:$AS$17,Y56+1,FALSE),VLOOKUP(0,$AO$12:$AS$17,Y56+1)),\"\")","v":""},{"$f":"IF(X56=\"\",\"\",IF(Y56=1,VLOOKUP(W56,$AO$26:$AS$30,X56+1,FALSE),VLOOKUP(W56,$AO$26:$AS$30,3,FALSE)))","v":""}]
[null,null,null,null,null,null,null,null,null,null,{"$f":"IF(($E$7+List1!A31)<=$E$10,$E$7+List1!A31,\"\")","v":""},null,null,null,null,"","","","","","","",0,"","",null,"",""]
[null,null,null,null,null,null,null,null,null,null,{"$f":"IF(($E$7+List1!A32)<=$E$10,$E$7+List1!A32,\"\")","v":""},null,null,null,null,"","","","","","","",0,"","",null,"",""]
[]
[null,"Podpis správce rozpočtu (tajemníka)",null,null,null,"Podpis pracovníka ekonomického oddělení, \nkterý kontroloval a upravil vyúčtování"]

{"sheet":"Zpráva o cestě","index":3,"n_rows":53,"n_cols":21,"rows_kept":53,"cut":false,"hidden":false,"merged":[[1,20,5,28],[7,8,7,16],[13,8,13,17],[0,10,0,15],[1,1,1,17],[3,1,3,4],[3,5,3,17],[5,1,5,4],[5,5,5,17],[52,1,52,3],[52,9,52,16],[7,5,7,6],[13,5,13,6],[19,10,19,16],[15,7,15,17],[17,1,17,6],[17,7,17,17],[19,1,19,5],[19,7,19,8],[22,1,22,5],[7,1,7,4],[9,1,9,4],[9,5,9,17],[11,5,11,17],[13,1,13,4],[15,1,15,3],[15,5,15,6],[23,1,31,16],[34,1,48,16],[51,1,51,3]]}
[null,null,null,null,null,null,null,null,null,null,"Příloha OD  č. 1/2022\n\n"]
[null,"ZPRÁVA O PRŮBĚHU A VÝSLEDCÍCH  PRACOVNÍ CESTY",null,null,null,null,null,null,null,null,null,null,null,null,null,null,null,null,null,null,{"$f":"IFERROR(\"Vyúčtování pracovní cesty a zprávu o pracovní cestě je nutné odevzdat nejpozději do \" &TEXT(List1!$AC$1,\"dd.mm.rrrr\")&\".\",\"\")","v":""}]
[]
[null,"Jméno a příjmení:",null,null,null,{"$f":"T(Příkaz!D4)","v":""}]
[]
[null,"Útvar, katedra:",null,null,null,{"$f":"T(Příkaz!L4)","v":""}]
[]
[null,"Datum a místo zahájení cesty:",null,null,null,{"$f":"T(Příkaz!F6)","v":""},null,null,{"$f":"T(Příkaz!J6)","v":""}]
[]
[null,"Místo konání:",null,null,null,{"$f":"T(Příkaz!D8)","v":""}]
[]
[null,"Účel:",null,null,null,{"$f":"T(Příkaz!D10)","v":""}]
[]
[null,"Datum a místo ukončení cesty:",null,null,null,{"$f":"T(Příkaz!F14)","v":""},null,null,{"$f":"T(Příkaz!J14)","v":""}]
[]
[null,"Počet dní:",null,null,null,{"$f":"List1!P2","v":1}]
[]
[null,"Zdroj financování (PF UK, grant, projekt):",null,null,null,null,null,{"$f":"T(Příkaz!D16)","v":""}]
[]
[null,"Způsob dopravy:",null,null,null,null,null,{"$f":"Příkaz!G18","v":"A"},null,null,{"$f":"IF(H20<>\"\",(VLOOKUP(H20,[1]List1!B3:C11,2,FALSE)),\"\")","v":"Autobus"}]
[]
[]
[null,"Průběh cesty:"]
[]
[]
[]
[]
[]
[]
[]
[]
[]
[]
[null,"Výsledek pracovní cesty (přínos pracovní cesty):"]
[]
[]
[]
[]
[]
[]
[]
[]
[]
[]
[]
[]
[]
[]
[]
[]
[]
[]
[null,"V Praze dne",null,null,null,null,null,null,null,"Podpis zaměstnance"]

{"sheet":"Kurzy CNB","index":4,"n_rows":35,"n_cols":34,"rows_kept":35,"cut":false,"hidden":false,"merged":[]}
["Datum","1 AUD","1 BGN","1 BRL","1 CAD","1 CHF","1 CNY","1 DKK","1 EUR","1 GBP","1 HKD","1 HRK","100 HUF","1000 IDR","1 ILS","100 INR","100 ISK","100 JPY","100 KRW","1 MXN","1 MYR","1 NOK","1 NZD","100 PHP","1 PLN","1 RON","100 RUB","1 SEK","1 SGD","100 THB","1 TRY","1 USD","1 XDR","1 ZAR"]
["2022-01-03",15.818,12.69,3.9060000000000001,17.21,23.931000000000001,3.4409999999999998,3.3370000000000002,24.82,29.501999999999999,2.8029999999999999,3.3010000000000002,6.7510000000000003,1.532,7.0679999999999996,29.411999999999999,16.815999999999999,19.015999999999998,1.833,1.0680000000000001,5.2389999999999999,2.4809999999999999,14.901999999999999,42.756999999999998,5.4080000000000004,5.016,29.361999999999998,2.41,16.189,65.897000000000006,1.6459999999999999,21.86,30.594999999999999,1.3819999999999999]
["2022-01-04",15.784000000000001,12.654999999999999,3.8570000000000002,17.210999999999999,23.902999999999999,3.4409999999999998,3.3279999999999998,24.75,29.599,2.8149999999999999,3.2919999999999998,6.7789999999999999,1.534,7.09,29.393999999999998,16.745999999999999,18.87,1.829,1.0669999999999999,5.242,2.472,14.849,42.683,5.4189999999999996,5.0019999999999998,29.146000000000001,2.407,16.166,65.861999999999995,1.635,21.943999999999999,30.744,1.367]
["2022-01-05",15.763999999999999,12.567,3.831,17.076000000000001,23.722000000000001,3.4140000000000001,3.3050000000000002,24.58,29.425999999999998,2.7890000000000001,3.2679999999999998,6.7880000000000003,1.514,7.03,29.234000000000002,16.744,18.759,1.8160000000000001,1.0629999999999999,5.1840000000000002,2.4649999999999999,14.814,42.637,5.3819999999999997,4.97,28.696999999999999,2.3969999999999998,16.04,65.438999999999993,1.613,21.739000000000001,30.359000000000002,1.3720000000000001]
["2022-01-06",15.547000000000001,12.542,3.81,16.977,23.6,3.3980000000000001,3.2970000000000002,24.53,29.344999999999999,2.7789999999999999,3.2610000000000001,6.8170000000000002,1.506,6.96,29.117999999999999,16.71,18.719000000000001,1.8009999999999999,1.0549999999999999,5.1459999999999999,2.444,14.645,42.335000000000001,5.3780000000000001,4.9619999999999997,28.356000000000002,2.375,15.944000000000001,64.656000000000006,1.5780000000000001,21.678999999999998,30.332000000000001,1.379]
["2022-01-07",15.462,12.494999999999999,3.798,17,23.45,3.391,3.286,24.44,29.291,2.7719999999999998,3.25,6.8129999999999997,1.506,6.9550000000000001,29.097999999999999,16.739999999999998,18.667999999999999,1.796,1.0569999999999999,5.1379999999999999,2.4369999999999998,14.595000000000001,42.094000000000001,5.3719999999999999,4.9420000000000002,28.658999999999999,2.3759999999999999,15.912000000000001,64.203999999999994,1.554,21.626000000000001,30.242999999999999,1.3839999999999999]
["2022-01-10",15.444000000000001,12.456,3.8090000000000002,17.004000000000001,23.317,3.3780000000000001,3.2749999999999999,24.36,29.212,2.7610000000000001,3.2370000000000001,6.7960000000000003,1.504,6.9009999999999998,29.073,16.661999999999999,18.673999999999999,1.7969999999999999,1.056,5.125,2.4300000000000002,14.542,41.902000000000001,5.3730000000000002,4.9260000000000002,28.664000000000001,2.3639999999999999,15.877000000000001,64.022999999999996,1.5469999999999999,21.524999999999999,30.096,1.3759999999999999]
["2022-01-11",15.449,12.483000000000001,3.8210000000000002,17.035,23.25,3.379,3.2810000000000001,24.414999999999999,29.251999999999999,2.762,3.2450000000000001,6.83,1.506,6.8780000000000001,29.152999999999999,16.609000000000002,18.645,1.8049999999999999,1.0569999999999999,5.1379999999999999,2.4380000000000002,14.557,42.11,5.3719999999999999,4.9370000000000003,28.768999999999998,2.3690000000000002,15.914999999999999,64.515000000000001,1.5660000000000001,21.538,30.151,1.379]
["2022-01-12",15.494999999999999,12.486000000000001,3.847,17.126999999999999,23.285,3.375,3.282,24.42,29.302,2.754,3.246,6.8579999999999997,1.5,6.8949999999999996,29.055,16.611999999999998,18.606000000000002,1.804,1.0529999999999999,5.1289999999999996,2.4609999999999999,14.561,42.06,5.3849999999999998,4.9379999999999997,28.8,2.3809999999999998,15.898,64.39,1.556,21.47,30.065999999999999,1.391]
["2022-01-13",15.571,12.505000000000001,3.851,17.106000000000002,23.399000000000001,3.355,3.2869999999999999,24.46,29.273,2.74,3.2519999999999998,6.8849999999999998,1.4930000000000001,6.8639999999999999,28.873999999999999,16.638999999999999,18.678000000000001,1.8,1.0449999999999999,5.1100000000000003,2.4620000000000002,14.667,41.764000000000003,5.3920000000000003,4.9470000000000001,28.242000000000001,2.3889999999999998,15.856999999999999,64.296999999999997,1.571,21.34,29.916,1.3859999999999999]
["2022-01-14",15.5,12.523,3.867,17.094000000000001,23.481000000000002,3.3679999999999999,3.2919999999999998,24.495000000000001,29.332000000000001,2.7490000000000001,3.258,6.8780000000000001,1.4970000000000001,6.8879999999999999,28.835999999999999,16.663,18.815999999999999,1.7989999999999999,1.0529999999999999,5.1219999999999999,2.452,14.627000000000001,41.716999999999999,5.3920000000000003,4.9560000000000004,27.824000000000002,2.3849999999999998,15.888999999999999,64.411000000000001,1.5760000000000001,21.4,30.119,1.391]
["2022-01-17",15.478999999999999,12.512,3.8969999999999998,17.128,23.460999999999999,3.38,3.2879999999999998,24.47,29.283000000000001,2.754,3.2509999999999999,6.8719999999999999,1.4990000000000001,6.899,28.885000000000002,16.669,18.731000000000002,1.8,1.0549999999999999,5.13,2.456,14.597,41.835000000000001,5.4080000000000004,4.9489999999999998,28.004000000000001,2.375,15.917,64.808000000000007,1.601,21.460999999999999,30.215,1.39]
["2022-01-18",15.427,12.488,3.89,17.166,23.45,3.3849999999999998,3.282,24.425000000000001,29.190999999999999,2.758,3.2469999999999999,6.843,1.4990000000000001,6.8680000000000003,28.798999999999999,16.728999999999999,18.73,1.802,1.0549999999999999,5.1360000000000001,2.4510000000000001,14.539,41.715000000000003,5.3970000000000002,4.9390000000000001,28.155999999999999,2.367,15.913,64.903999999999996,1.5820000000000001,21.488,30.251999999999999,1.3919999999999999]
["2022-01-19",15.477,12.429,3.8809999999999998,17.187999999999999,23.414000000000001,3.3759999999999999,3.2669999999999999,24.31,29.23,2.75,3.23,6.8310000000000004,1.492,6.84,28.798999999999999,16.742000000000001,18.719000000000001,1.804,1.052,5.1100000000000003,2.4470000000000001,14.573,41.603999999999999,5.375,4.9160000000000004,28.103999999999999,2.35,15.897,64.873999999999995,1.5760000000000001,21.427,30.074999999999999,1.3979999999999999]
["2022-01-20",15.491,12.404,3.9369999999999998,17.135999999999999,23.367999999999999,3.3730000000000002,3.26,24.26,29.135999999999999,2.7490000000000001,3.2229999999999999,6.8179999999999996,1.4930000000000001,6.8220000000000001,28.757999999999999,16.684999999999999,18.731000000000002,1.798,1.0469999999999999,5.109,2.4359999999999999,14.5,41.627000000000002,5.3639999999999999,4.9059999999999997,27.92,2.339,15.898,65.018000000000001,1.595,21.399000000000001,30.006,1.4059999999999999]
["2022-01-21",15.429,12.446999999999999,3.9220000000000002,17.125,23.515999999999998,3.3849999999999998,3.2709999999999999,24.344999999999999,29.106000000000002,2.7549999999999999,3.234,6.7960000000000003,1.496,6.8250000000000002,28.838000000000001,16.72,18.852,1.8009999999999999,1.048,5.1239999999999997,2.4209999999999998,14.417,41.848999999999997,5.3710000000000004,4.923,28.027999999999999,2.3370000000000002,15.952,65.164000000000001,1.599,21.452000000000002,30.084,1.419]
["2022-01-24",15.455,12.539,3.9609999999999999,17.193000000000001,23.786999999999999,3.4279999999999999,3.2949999999999999,24.524999999999999,29.260999999999999,2.7869999999999999,3.2570000000000001,6.8150000000000004,1.5129999999999999,6.8410000000000002,29.071999999999999,16.844000000000001,19.067,1.8120000000000001,1.054,5.1790000000000003,2.4129999999999998,14.507999999999999,42.247999999999998,5.383,4.9589999999999996,27.652999999999999,2.335,16.117000000000001,65.61,1.6160000000000001,21.693999999999999,30.414999999999999,1.4219999999999999]
["2022-01-25",15.49,12.522,3.9420000000000002,17.193999999999999,23.634,3.4340000000000002,3.2909999999999999,24.495000000000001,29.262,2.7919999999999998,3.254,6.8129999999999997,1.5149999999999999,6.827,29.061,16.777000000000001,19.061,1.8120000000000001,1.052,5.1879999999999997,2.4159999999999999,14.484999999999999,42.41,5.3529999999999998,4.9530000000000003,27.6,2.3319999999999999,16.16,65.694000000000003,1.6060000000000001,21.736999999999998,30.451000000000001,1.419]
["2022-01-26",15.595000000000001,12.537000000000001,4.016,17.305,23.613,3.4420000000000002,3.2949999999999999,24.52,29.382999999999999,2.7930000000000001,3.2570000000000001,6.8170000000000002,1.5149999999999999,6.8369999999999997,29.045999999999999,16.841000000000001,19.024999999999999,1.8169999999999999,1.0580000000000001,5.1879999999999997,2.4489999999999998,14.54,42.485999999999997,5.3470000000000004,4.9580000000000002,27.488,2.3460000000000001,16.172999999999998,65.971999999999994,1.607,21.744,30.417999999999999,1.4350000000000001]
["2022-01-27",15.492000000000001,12.49,4.0609999999999999,17.25,23.513000000000002,3.4380000000000002,3.282,24.43,29.303000000000001,2.81,3.2429999999999999,6.8220000000000001,1.522,6.8460000000000001,29.091000000000001,16.824999999999999,18.977,1.8169999999999999,1.056,5.2149999999999999,2.4449999999999998,14.48,42.639000000000003,5.3579999999999997,4.9390000000000001,28.036999999999999,2.339,16.190000000000001,65.802000000000007,1.6080000000000001,21.890999999999998,30.640999999999998,1.4279999999999999]
["2022-01-28",15.301,12.493,4.0650000000000004,17.164000000000001,23.545000000000002,3.4510000000000001,3.2829999999999999,24.434999999999999,29.376999999999999,2.8149999999999999,3.2450000000000001,6.8150000000000004,1.5249999999999999,6.8449999999999998,29.23,16.969000000000001,18.989999999999998,1.8109999999999999,1.054,5.2359999999999998,2.4380000000000002,14.349,42.850999999999999,5.3410000000000002,4.9400000000000004,28.213000000000001,2.3159999999999998,16.175000000000001,65.647000000000006,1.6140000000000001,21.94,30.542000000000002,1.4059999999999999]
["2022-01-31",15.403,12.458,4.0609999999999999,17.12,23.42,3.4340000000000002,3.274,24.364999999999998,29.302,2.8010000000000002,3.2360000000000002,6.8220000000000001,1.5189999999999999,6.8360000000000003,29.225000000000001,17.015000000000001,18.920000000000002,1.806,1.0509999999999999,5.218,2.4350000000000001,14.349,42.756999999999998,5.3090000000000002,4.9249999999999998,28.094000000000001,2.3239999999999998,16.125,65.605000000000004,1.631,21.84,30.373999999999999,1.4019999999999999]
["2022-02-01",15.337999999999999,12.442,4.085,17.021999999999998,23.459,3.3980000000000001,3.2709999999999999,24.335000000000001,29.146000000000001,2.7730000000000001,3.2330000000000001,6.8280000000000003,1.5029999999999999,6.8250000000000002,28.905999999999999,16.922999999999998,18.850000000000001,1.798,1.052,5.1639999999999997,2.4420000000000002,14.291,42.316000000000003,5.3129999999999997,4.92,28.201000000000001,2.33,16.012,65.108000000000004,1.6160000000000001,21.614999999999998,30.082999999999998,1.4179999999999999]
["2022-02-02",15.355,12.423,4.0750000000000002,16.952999999999999,23.358000000000001,3.3719999999999999,3.2669999999999999,24.3,29.138000000000002,2.7519999999999998,3.2290000000000001,6.8559999999999999,1.494,6.7889999999999997,28.704999999999998,16.969000000000001,18.786000000000001,1.7869999999999999,1.046,5.125,2.4489999999999998,14.285,42.03,5.3470000000000004,4.9130000000000003,28.311,2.339,15.923999999999999,64.653000000000006,1.5880000000000001,21.449000000000002,29.984999999999999,1.401]
["2022-02-03",15.24,12.348000000000001,4.0369999999999999,16.849,23.202000000000002,3.3650000000000002,3.246,24.15,29.024999999999999,2.746,3.2069999999999999,6.8289999999999997,1.4890000000000001,6.7190000000000003,28.579000000000001,16.959,18.632000000000001,1.778,1.0389999999999999,5.1159999999999997,2.4260000000000002,14.209,41.929000000000002,5.33,4.883,28.018999999999998,2.3250000000000002,15.877000000000001,64.542000000000002,1.5780000000000001,21.402000000000001,29.978000000000002,1.397]
["2022-02-04",15.07,12.456,4.0039999999999996,16.704999999999998,23.053999999999998,3.3410000000000002,3.2730000000000001,24.36,28.798999999999999,2.7290000000000001,3.2360000000000002,6.9029999999999996,1.478,6.6319999999999997,28.443999999999999,17.059000000000001,18.494,1.7729999999999999,1.0329999999999999,5.085,2.4239999999999999,14.093999999999999,41.465000000000003,5.3570000000000002,4.9249999999999998,27.9,2.331,15.801,64.447000000000003,1.571,21.251000000000001,29.734000000000002,1.385]
["2022-02-07",15.06,12.393000000000001,4.0060000000000002,16.667999999999999,22.934999999999999,3.3319999999999999,3.2559999999999998,24.24,28.631,2.718,3.2229999999999999,6.8579999999999997,1.4710000000000001,6.6310000000000002,28.350999999999999,16.904,18.422999999999998,1.7669999999999999,1.028,5.0609999999999999,2.4079999999999999,14.028,41.104999999999997,5.3339999999999996,4.9000000000000004,28.009,2.3199999999999998,15.754,64.244,1.5620000000000001,21.18,29.792000000000002,1.37]
["2022-02-08",15.137,12.404999999999999,4.0289999999999999,16.725999999999999,23.007000000000001,3.3410000000000002,3.2589999999999999,24.26,28.753,2.7280000000000002,3.2250000000000001,6.8710000000000004,1.478,6.601,28.457000000000001,17.036999999999999,18.425999999999998,1.774,1.0289999999999999,5.0819999999999999,2.407,14.106,41.323999999999998,5.3540000000000001,4.9059999999999997,28.286000000000001,2.323,15.805999999999999,64.506,1.56,21.268000000000001,29.873000000000001,1.3759999999999999]
["2022-02-09",15.246,12.419,4.0359999999999996,16.734000000000002,23.012,3.339,3.2629999999999999,24.29,28.818000000000001,2.726,3.226,6.8819999999999997,1.48,6.5970000000000004,28.388999999999999,17.082000000000001,18.398,1.7789999999999999,1.034,5.077,2.415,14.198,41.454000000000001,5.3819999999999997,4.9109999999999996,28.402999999999999,2.3340000000000001,15.827,64.947999999999993,1.5620000000000001,21.245999999999999,29.821000000000002,1.3859999999999999]
["2022-02-10",15.319000000000001,12.449,4.0810000000000004,16.794,23.033999999999999,3.35,3.2730000000000001,24.35,28.902999999999999,2.7309999999999999,3.234,6.8780000000000001,1.484,6.617,28.335000000000001,17.172000000000001,18.388999999999999,1.7809999999999999,1.042,5.0880000000000001,2.4180000000000001,14.259,41.563000000000002,5.42,4.9240000000000004,28.640999999999998,2.3130000000000002,15.867000000000001,65.216999999999999,1.573,21.286000000000001,29.885999999999999,1.407]
["2022-02-11",15.324999999999999,12.477,4.12,16.834,23.116,3.3639999999999999,3.28,24.405000000000001,29.068000000000001,2.7410000000000001,3.2410000000000001,6.907,1.49,6.6040000000000001,28.428999999999998,17.210999999999999,18.454000000000001,1.79,1.0469999999999999,5.1029999999999998,2.4220000000000002,14.285,41.734000000000002,5.3970000000000002,4.9349999999999996,28.411999999999999,2.3130000000000002,15.911,65.459000000000003,1.585,21.378,30.013000000000002,1.4119999999999999]
["2022-02-14",15.428000000000001,12.542999999999999,4.1609999999999996,16.998999999999999,23.427,3.4119999999999999,3.2970000000000002,24.535,29.305,2.778,3.2589999999999999,6.867,1.5129999999999999,6.6580000000000004,28.698,17.204999999999998,18.780999999999999,1.8109999999999999,1.06,5.173,2.4380000000000002,14.334,42.207000000000001,5.4039999999999999,4.96,28.425000000000001,2.3119999999999998,16.088999999999999,66.715999999999994,1.5980000000000001,21.675999999999998,30.396000000000001,1.431]
["2022-02-15",15.37,12.484999999999999,4.141,16.920000000000002,23.294,3.3940000000000001,3.2810000000000001,24.42,29.152999999999999,2.7589999999999999,3.2429999999999999,6.8730000000000002,1.5049999999999999,6.673,28.582000000000001,17.295000000000002,18.614999999999998,1.7989999999999999,1.056,5.1420000000000003,2.42,14.246,42.003999999999998,5.4210000000000003,4.9420000000000002,28.556999999999999,2.3090000000000002,16,66.563999999999993,1.579,21.527000000000001,30.122,1.4219999999999999]
["2022-02-16",15.362,12.456,4.1459999999999999,16.901,23.167999999999999,3.38,3.274,24.364999999999998,29.021999999999998,2.7469999999999999,3.2360000000000002,6.851,1.5029999999999999,6.7210000000000001,28.536000000000001,17.231000000000002,18.515999999999998,1.79,1.0509999999999999,5.1189999999999998,2.41,14.241,41.759,5.4189999999999996,4.9279999999999999,28.536999999999999,2.3130000000000002,15.933999999999999,66.263000000000005,1.575,21.425000000000001,30.013999999999999,1.415]
["2022-02-17",15.442,12.465,4.1680000000000001,16.881,23.294,3.3839999999999999,3.2770000000000001,24.38,29.202000000000002,2.7490000000000001,3.2360000000000002,6.8470000000000004,1.498,6.7290000000000001,28.585999999999999,17.218,18.635999999999999,1.792,1.0580000000000001,5.1210000000000004,2.4079999999999999,14.382999999999999,41.811,5.41,4.9320000000000004,28.213999999999999,2.3010000000000002,15.958,66.738,1.5740000000000001,21.443999999999999,30.081,1.4350000000000001]

{"sheet":"List1","index":5,"n_rows":569,"n_cols":30,"rows_kept":569,"cut":false,"hidden":true,"merged":[]}
[null,null,null,null,null,null,null,"2022-01-01",null,null,null,null,null,null,null,"počet dní",null,null,null,null,null,null,null,null,null,null,null,{"$f":"Příkaz!F14","v":"00:00:00"},{"$f":"VLOOKUP(VLOOKUP(AB1,AB3:AD569,3,FALSE)+10,AA3:AB569,2,FALSE)","v":{"$error":"#N/A"}}]
[1,null,null,null,null,null,null,"2022-12-31",null,null,"ano","JE",null,"ZO PF UK",null,{"$f":"Příkaz!F14-Příkaz!F6+1","v":1},{"$f":"VALUE(RIGHT(P2,1))","v":1},{"$f":"P2&\" \"&VLOOKUP(Q2,P6:Q15,2,FALSE)","v":"1 den"},null,null,null,"Země","Měnový kód","Měna","Základní sazby zahraničního stravného",null,null,"datum","body"]
[2,"V","Vlak",null,null,null,null,null,null,null,"ne","NENÍ",null,"jinak",null,null,null,"CZK","CZK",0,1,"Afghánistán","EUR","euro",45,null,0,"2022-01-01",0]
[3,"A","Autobus",null,null,null,null,null,"CZK",null,null,null,null,null,null,null,null,"EUR","AUD",2,1,"Albánie","EUR","euro",40,null,{"$f":"AA3+AC4","v":0},"2022-01-02",0,{"$f":"AA3+AC4","v":0}]
[4,"L","Letadlo",null,null,null,null,null,"EUR",null,"Ne",null,null,null,null,null,null,"GBP","BGN",3,1,"Alžírsko","EUR","euro",50,null,1,"2022-01-03",1,{"$f":"AA4+AC5","v":1}]
[5,"SV","Služební silniční vozidlo",null,null,null,null,null,"USD",null,"Ano, v hotovosti",null,null,"ZO PF UK",null,0,"dní","PLN","BRL",4,1,"Andorra","EUR","euro",45,null,2,"2022-01-04",1,2]
[6,"SJ","Spolujízda",null,null,null,null,null,"GBP",null,"Ano, na bank. účet",null,null,"vyjíždějící",null,1,"den","USD","CAD",5,1,"Angola","USD","americký dolar",60,null,3,"2022-01-05",1,3]
[7,"VV","Vlastní silniční vozidlo - náhrada za každý km jízdy",null,null,null,null,null,"AUD",null,null,null,null,null,null,2,"dny",null,"CHF",6,1,"Argentina","USD","americký dolar",50,null,4,"2022-01-06",1,4]
[8,"V - VV","Vlastní vozidlo s náhradou výdajů za vlak",null,null,null,null,null,"BRL",null,null,null,null,null,null,3,"dny",null,"CNY",7,1,"Arménie","EUR","euro",35,null,5,"2022-01-07",1,5]
[9,"A - VV","Vlastní vozidlo s náhradou výdajů za autobus",null,null,null,null,null,"BGN",null,null,null,null,null,null,4,"dny",null,"DKK",8,1,"Austrálie a Oceánie – ostrovní státy1) ","USD","americký dolar",60,null,5,"2022-01-08",0,5]
[10,"L - VV","Vlastní vozidlo s náhradou výdajů za letadlo",null,null,null,null,null,"CNY",null,null,null,null,null,null,5,"dní",null,"EUR",9,1,"Ázerbájdžán","EUR","euro",40,null,5,"2022-01-09",0,5]
[11,null,null,null,null,null,null,null,"DKK",null,null,null,null,null,null,6,"dní",null,"GBP",10,1,"Bahamy","USD","americký dolar",55,null,6,"2022-01-10",1,6]
[12,"S",null,null,null,null,null,null,"PHP",null,null,null,null,null,null,7,"dní",null,"HKD",11,1,"Bahrajn","EUR","euro",45,null,7,"2022-01-11",1,7]
[13,"O",null,null,null,null,null,null,"HKD",null,null,null,null,null,null,8,"dní",null,"HRK",12,1,"Bangladéš","USD","americký dolar",50,null,8,"2022-01-12",1,8]
[14,"V",null,null,null,null,null,null,"HRK",null,null,null,null,null,null,9,"dní",null,"HUF",13,100,"Belgie","EUR","euro",50,null,9,"2022-01-13",1,9]
[15,"SO",null,null,null,null,null,null,"INR",null,null,null,null,null,null,null,null,null,"IDR",14,1000,"Belize","USD","americký dolar",50,null,10,"2022-01-14",1,10]
[16,"SV",null,null,null,null,null,null,"IDR",null,null,null,null,null,null,null,null,null,"ILS",15,1,"Benin","EUR","euro",45,null,10,"2022-01-15",0,10]
[17,"OV",null,null,null,null,null,null,"ISK",null,null,null,null,null,null,null,null,null,"INR",16,100,"Bermudy","USD","americký dolar",50,null,10,"2022-01-16",0,10]
[18,"SOV",null,null,null,null,null,null,"ILS",null,null,null,null,null,null,null,null,null,"ISK",17,100,"Bělorusko","EUR","euro",45,null,11,"2022-01-17",1,11]
[19,null,null,null,null,null,null,null,"JPY",null,null,null,null,null,null,null,null,null,"JPY",18,100,"Bhútán","USD","americký dolar",50,null,12,"2022-01-18",1,12]
[20,null,null,null,null,null,null,null,"ZAR",null,null,null,null,null,null,null,null,null,"KRW",19,100,"Bolívie","USD","americký dolar",50,null,13,"2022-01-19",1,13]
[21,110,"Z",1,null,null,null,null,"CAD",null,null,null,null,null,null,null,null,null,"MXN",20,1,"Bosna a Hercegovina","EUR","euro",40,null,14,"2022-01-20",1,14]
[22,1010,"P",2,null,null,null,null,"KRW",null,null,null,null,null,null,null,null,null,"MYR",21,1,"Botswana","USD","americký dolar",55,null,15,"2022-01-21",1,15]
[23,1001,"K",3,null,null,null,null,"HUF",null,null,null,null,null,null,null,null,null,"NOK",22,1,"Brazílie","USD","americký dolar",55,null,15,"2022-01-22",0,15]
[24,101,"S",4,null,null,null,null,"MYR",null,null,null,null,null,null,null,null,null,"NZD",23,1,"Brunej","USD","americký dolar",40,null,15,"2022-01-23",0,15]
[25,0,0,5,null,null,null,null,"MXN",null,null,null,null,null,null,null,null,null,"PHP",24,100,"Bulharsko","EUR","euro",40,null,16,"2022-01-24",1,16]
[26,null,null,null,null,null,null,null,"XDR",null,null,null,null,null,null,null,null,null,"PLN",25,1,"Burkina Faso ","EUR","euro",40,null,17,"2022-01-25",1,17]
[27,null,null,null,null,null,null,null,"NOK",null,null,null,null,null,null,null,null,null,"RON",26,1,"Burundi","USD","americký dolar",55,null,18,"2022-01-26",1,18]
[28,null,null,null,null,null,null,null,"NZD",null,null,null,null,null,null,null,null,null,"RUB",27,100,"Čad","EUR","euro",50,null,19,"2022-01-27",1,19]
[29,null,null,null,null,null,null,null,"PLN",null,null,null,null,null,null,null,null,null,"SEK",28,1,"Černá Hora","EUR","euro",35,null,20,"2022-01-28",1,20]
[30,null,null,null,null,null,null,null,"RON",null,null,null,null,null,null,null,null,null,"SGD",29,1,"Čína","EUR","euro",45,null,20,"2022-01-29",0,20]
[31,null,null,null,null,null,null,null,"RUB",null,null,null,null,null,null,null,null,null,"THB",30,100,"Dánsko","EUR","euro",55,null,20,"2022-01-30",0,20]
[32,null,null,null,null,null,null,null,"SGD",null,null,null,null,null,null,null,null,null,"TRY",31,1,"Džibutsko","USD","americký dolar",65,null,21,"2022-01-31",1,21]
[33,null,null,null,null,null,null,null,"SEK",null,null,null,null,null,null,null,null,null,"USD",32,1,"Egypt","EUR","euro",35,null,22,"2022-02-01",1,22]
[34,null,null,null,null,null,null,null,"CHF",null,null,null,null,null,null,null,null,null,"XDR",33,1,"Ekvádor","USD","americký dolar",50,null,23,"2022-02-02",1,23]
[35,null,null,null,null,null,null,null,"THB",null,null,null,null,null,null,null,null,null,"ZAR",34,1,"Eritrea","USD","americký dolar",50,null,24,"2022-02-03",1,24]
[36,null,null,null,null,null,null,null,"TRY",null,null,null,null,null,null,null,null,null,null,{"$f":"RIGHT(S37,3)","v":""},null,"Estonsko","EUR","euro",40,null,25,"2022-02-04",1,25]
[37,null,null,null,null,null,null,null,null,null,null,null,null,null,null,null,null,null,null,"",null,"Etiopie","EUR","euro",50,null,25,"2022-02-05",0,25]
[38,null,null,null,null,null,null,null,null,null,null,null,null,null,null,null,null,null,null,"",null,"Filipíny","EUR","euro",40,null,25,"2022-02-06",0,25]
[39,null,null,null,null,null,null,null,null,null,null,null,null,null,null,null,null,null,null,"",null,"Finsko","EUR","euro",50,null,26,"2022-02-07",1,26]
[40,null,null,null,null,null,null,null,null,null,null,null,null,null,null,null,null,null,null,"",null,"Francie","EUR","euro",50,null,27,"2022-02-08",1,27]
[41,null,null,null,null,null,null,null,null,null,null,null,null,null,null,null,null,null,null,"",null,"Francouzská Guyana","EUR","euro",45,null,28,"2022-02-09",1,28]
[42,null,null,null,null,null,null,null,null,null,null,null,null,null,null,null,null,null,null,"",null,"Gabon","EUR","euro",50,null,29,"2022-02-10",1,29]
[43,null,null,null,null,null,null,null,null,null,null,null,null,null,null,null,null,null,null,"",null,"Gambie","EUR","euro",45,null,30,"2022-02-11",1,30]
[44,null,null,null,null,null,null,null,null,null,null,null,null,null,null,null,null,null,null,"",null,"Ghana","EUR","euro",50,null,30,"2022-02-12",0,30]
[45,null,null,null,null,null,null,null,null,null,null,null,null,null,null,null,null,null,null,"",null,"Gibraltar","EUR","euro",40,null,30,"2022-02-13",0,30]
[46,null,null,null,null,null,null,null,null,null,null,null,null,null,null,null,null,null,null,"",null,"Gruzie","EUR","euro",40,null,31,"2022-02-14",1,31]
[47,null,null,null,null,null,null,null,null,null,null,null,null,null,null,null,null,null,null,"",null,"Guatemala","USD","americký dolar",45,null,32,"2022-02-15",1,32]
[48,null,null,null,null,null,null,null,null,null,null,null,null,null,null,null,null,null,null,"",null,"Guinea","EUR","euro",45,null,33,"2022-02-16",1,33]
[49,null,null,null,null,null,null,null,null,null,null,null,null,null,null,null,null,null,null,"",null,"Guinea-Bissau","EUR","euro",45,null,34,"2022-02-17",1,34]
[50,null,null,null,null,null,null,null,null,null,null,null,null,null,null,null,null,null,null,"",null,"Guyana","USD","americký dolar",50,null,35,"2022-02-18",1,35]
[51,null,null,null,null,null,null,null,null,null,null,null,null,null,null,null,null,null,null,"",null,"Honduras","USD","americký dolar",45,null,35,"2022-02-19",0,35]
[52,null,null,null,null,null,null,null,null,null,null,null,null,null,null,null,null,null,null,"",null,"Hongkong ","EUR","euro",45,null,35,"2022-02-20",0,35]
[53,null,null,null,null,null,null,null,null,null,null,null,null,null,null,null,null,null,null,"",null,"Chile","USD","americký dolar",55,null,36,"2022-02-21",1,36]
[54,null,null,null,null,null,null,null,null,null,null,null,null,null,null,null,null,null,null,"",null,"Chorvatsko","EUR","euro",40,null,37,"2022-02-22",1,37]
[55,null,null,null,null,null,null,null,null,null,null,null,null,null,null,null,null,null,null,"",null,"Indie","EUR","euro",45,null,38,"2022-02-23",1,38]
[56,null,null,null,null,null,null,null,null,null,null,null,null,null,null,null,null,null,null,"",null,"Indonésie","EUR","euro",40,null,39,"2022-02-24",1,39]
[57,null,null,null,null,null,null,null,null,null,null,null,null,null,null,null,null,null,null,"",null,"Irák","EUR","euro",40,null,40,"2022-02-25",1,40]
[58,null,null,null,null,null,null,null,null,null,null,null,null,null,null,null,null,null,null,"",null,"Írán","EUR","euro",40,null,40,"2022-02-26",0,40]
[59,null,null,null,null,null,null,null,null,null,null,null,null,null,null,null,null,null,null,"",null,"Irsko","EUR","euro",50,null,40,"2022-02-27",0,40]
[60,null,null,null,null,null,null,null,null,null,null,null,null,null,null,null,null,null,null,"",null,"Island","EUR","euro",60,null,41,"2022-02-28",1,41]
[61,null,null,null,null,null,null,null,null,null,null,null,null,null,null,null,null,null,null,"",null,"Itálie, Vatikán a San Marino","EUR","euro",50,null,42,"2022-03-01",1,42]
[null,null,null,null,null,null,null,null,null,null,null,null,null,null,null,null,null,null,null,"",null,"Izrael","USD","americký dolar",55,null,43,"2022-03-02",1,43]
[null,null,null,null,null,null,null,null,null,null,null,null,null,null,null,null,null,null,null,"",null,"Japonsko","USD","americký dolar",65,null,44,"2022-03-03",1,44]
[null,null,null,null,null,null,null,null,null,null,null,null,null,null,null,null,null,null,null,"",null,"Jemen","EUR","euro",35,null,45,"2022-03-04",1,45]
[null,null,null,null,null,null,null,null,null,null,null,null,null,null,null,null,null,null,null,"",null,"Jihoafrická republika","EUR","euro",40,null,45,"2022-03-05",0,45]
[null,null,null,null,null,null,null,null,null,null,null,null,null,null,null,null,null,null,null,"",null,"Jižní Súdán","USD","americký dolar",55,null,45,"2022-03-06",0,45]
[null,null,null,null,null,null,null,null,null,null,null,null,null,null,null,null,null,null,null,"",null,"Jordánsko","EUR","euro",45,null,{"$f":"AA67+AC68","v":46},"2022-03-07",1,46]
[null,null,null,null,null,null,null,null,null,null,null,null,null,null,null,null,null,null,null,{"$f":"RIGHT(S69,3)","v":""},null,"Kambodža","USD","americký dolar",45,null,47,"2022-03-08",1,{"$f":"AA68+AC69","v":47}]
[null,null,null,null,null,null,null,null,null,null,null,null,null,null,null,null,null,null,null,"",null,"Kamerun","EUR","euro",50,null,48,"2022-03-09",1,48]
[null,null,null,null,null,null,null,null,null,null,null,null,null,null,null,null,null,null,null,"",null,"Kanada","USD","americký dolar",50,null,49,"2022-03-10",1,49]
[null,null,null,null,null,null,null,null,null,null,null,null,null,null,null,null,null,null,null,"",null,"Kapverdy","EUR","euro",40,null,50,"2022-03-11",1,50]
[null,null,null,null,null,null,null,null,null,null,null,null,null,null,null,null,null,null,null,"",null,"Karibik – ostrovní státy2) ","USD","americký dolar",55,null,50,"2022-03-12",0,50]
[null,null,null,null,null,null,null,null,null,null,null,null,null,null,null,null,null,null,null,"",null,"Katar","USD","americký dolar",50,null,50,"2022-03-13",0,50]
[null,null,null,null,null,null,null,null,null,null,null,null,null,null,null,null,null,null,null,"",null,"Kazachstán","EUR","euro",45,null,51,"2022-03-14",1,51]
[null,null,null,null,null,null,null,null,null,null,null,null,null,null,null,null,null,null,null,"",null,"Keňa","EUR","euro",45,null,52,"2022-03-15",1,52]
[null,null,null,null,null,null,null,null,null,null,null,null,null,null,null,null,null,null,null,"",null,"Kolumbie","USD","americký dolar",45,null,53,"2022-03-16",1,53]
[null,null,null,null,null,null,null,null,null,null,null,null,null,null,null,null,null,null,null,"",null,"Komory","USD","americký dolar",55,null,54,"2022-03-17",1,54]
[null,null,null,null,null,null,null,null,null,null,null,null,null,null,null,null,null,null,null,"",null,"Konžská republika  (Brazzaville)","USD","americký dolar",60,null,55,"2022-03-18",1,55]
[null,null,null,null,null,null,null,null,null,null,null,null,null,null,null,null,null,null,null,"",null,"Konžská demokratická republika (Kinshasa)","USD","americký dolar",65,null,55,"2022-03-19",0,55]
[null,null,null,null,null,null,null,null,null,null,null,null,null,null,null,null,null,null,null,"",null,"Korejská lidově demokratická republika","EUR","euro",45,null,55,"2022-03-20",0,55]
[null,null,null,null,null,null,null,null,null,null,null,null,null,null,null,null,null,null,null,"",null,"Korejská republika","EUR","euro",50,null,56,"2022-03-21",1,56]
[null,null,null,null,null,null,null,null,null,null,null,null,null,null,null,null,null,null,null,"",null,"Kosovo","EUR","euro",45,null,57,"2022-03-22",1,57]
[null,null,null,null,null,null,null,null,null,null,null,null,null,null,null,null,null,null,null,"",null,"Kostarika","USD","americký dolar",50,null,58,"2022-03-23",1,58]
[null,null,null,null,null,null,null,null,null,null,null,null,null,null,null,null,null,null,null,"",null,"Kuba","EUR","euro",55,null,59,"2022-03-24",1,59]
[null,null,null,null,null,null,null,null,null,null,null,null,null,null,null,null,null,null,null,"",null,"Kuvajt","EUR","euro",40,null,60,"2022-03-25",1,60]
[null,null,null,null,null,null,null,null,null,null,null,null,null,null,null,null,null,null,null,"",null,"Kypr","EUR","euro",40,null,60,"2022-03-26",0,60]
[null,null,null,null,null,null,null,null,null,null,null,null,null,null,null,null,null,null,null,"",null,"Kyrgyzstán","EUR","euro",40,null,60,"2022-03-27",0,60]
[null,null,null,null,null,null,null,null,null,null,null,null,null,null,null,null,null,null,null,"",null,"Laos","USD","americký dolar",45,null,61,"2022-03-28",1,61]
[null,null,null,null,null,null,null,null,null,null,null,null,null,null,null,null,null,null,null,"",null,"Lesotho","USD","americký dolar",50,null,62,"2022-03-29",1,62]
[null,null,null,null,null,null,null,null,null,null,null,null,null,null,null,null,null,null,null,"",null,"Libanon","USD","americký dolar",55,null,63,"2022-03-30",1,63]
[null,null,null,null,null,null,null,null,null,null,null,null,null,null,null,null,null,null,null,"",null,"Libérie","EUR","euro",45,null,64,"2022-03-31",1,64]
[null,null,null,null,null,null,null,null,null,null,null,null,null,null,null,null,null,null,null,"",null,"Libye","EUR","euro",45,null,65,"2022-04-01",1,65]
[null,null,null,null,null,null,null,null,null,null,null,null,null,null,null,null,null,null,null,"",null,"Lichtenštejnsko","CHF","švýcarský frank",65,null,65,"2022-04-02",0,65]
[null,null,null,null,null,null,null,null,null,null,null,null,null,null,null,null,null,null,null,"",null,"Litva","EUR","euro",40,null,65,"2022-04-03",0,65]
[null,null,null,null,null,null,null,null,null,null,null,null,null,null,null,null,null,null,null,"",null,"Lotyšsko","EUR","euro",40,null,66,"2022-04-04",1,66]
[null,null,null,null,null,null,null,null,null,null,null,null,null,null,null,null,null,null,null,"",null,"Lucembursko","EUR","euro",50,null,67,"2022-04-05",1,67]
[null,null,null,null,null,null,null,null,null,null,null,null,null,null,null,null,null,null,null,"",null,"Macao ","EUR","euro",45,null,68,"2022-04-06",1,68]
[null,null,null,null,null,null,null,null,null,null,null,null,null,null,null,null,null,null,null,"",null,"Madagaskar","EUR","euro",40,null,69,"2022-04-07",1,69]
[null,null,null,null,null,null,null,null,null,null,null,null,null,null,null,null,null,null,null,"",null,"Maďarsko","EUR","euro",40,null,70,"2022-04-08",1,70]
[null,null,null,null,null,null,null,null,null,null,null,null,null,null,null,null,null,null,null,"",null,"Malajsie","USD","americký dolar",45,null,70,"2022-04-09",0,70]
[null,null,null,null,null,null,null,null,null,null,null,null,null,null,null,null,null,null,null,"",null,"Malawi","USD","americký dolar",45,null,70,"2022-04-10",0,70]
[null,null,null,null,null,null,null,null,null,null,null,null,null,null,null,null,null,null,null,"",null,"Maledivy","USD","americký dolar",55,null,71,"2022-04-11",1,71]
[null,null,null,null,null,null,null,null,null,null,null,null,null,null,null,null,null,null,null,"",null,"Mali","EUR","euro",45,null,72,"2022-04-12",1,72]
[null,null,null,null,null,null,null,null,null,null,null,null,null,null,null,null,null,null,null,"",null,"Malta","EUR","euro",50,null,73,"2022-04-13",1,73]
[null,null,null,null,null,null,null,null,null,null,null,null,null,null,null,null,null,null,null,"",null,"Maroko","EUR","euro",40,null,74,"2022-04-14",1,74]
[null,null,null,null,null,null,null,null,null,null,null,null,null,null,null,null,null,null,null,"",null,"Mauretánie","EUR","euro",40,null,74,"2022-04-15",0,74]
[null,null,null,null,null,null,null,null,null,null,null,null,null,null,null,null,null,null,null,"",null,"Mauricius","USD","americký dolar",55,null,74,"2022-04-16",0,74]
[null,null,null,null,null,null,null,null,null,null,null,null,null,null,null,null,null,null,null,"",null,"Mexiko","USD","americký dolar",50,null,74,"2022-04-17",0,74]
[null,null,null,null,null,null,null,null,null,null,null,null,null,null,null,null,null,null,null,"",null,"Moldavsko","EUR","euro",40,null,74,"2022-04-18",0,74]
[null,null,null,null,null,null,null,null,null,null,null,null,null,null,null,null,null,null,null,"",null,"Monako","EUR","euro",45,null,75,"2022-04-19",1,75]
[null,null,null,null,null,null,null,null,null,null,null,null,null,null,null,null,null,null,null,"",null,"Mongolsko","EUR","euro",40,null,76,"2022-04-20",1,76]
[null,null,null,null,null,null,null,null,null,null,null,null,null,null,null,null,null,null,null,"",null,"Mosambik","USD","americký dolar",50,null,77,"2022-04-21",1,77]
[null,null,null,null,null,null,null,null,null,null,null,null,null,null,null,null,null,null,null,"",null,"Myanmar (Barma)","USD","americký dolar",50,null,78,"2022-04-22",1,78]
[null,null,null,null,null,null,null,null,null,null,null,null,null,null,null,null,null,null,null,"",null,"Namibie","USD","americký dolar",50,null,78,"2022-04-23",0,78]
[null,null,null,null,null,null,null,null,null,null,null,null,null,null,null,null,null,null,null,"",null,"Německo","EUR","euro",45,null,78,"2022-04-24",0,78]
[null,null,null,null,null,null,null,null,null,null,null,null,null,null,null,null,null,null,null,"",null,"Nepál","USD","americký dolar",50,null,79,"2022-04-25",1,79]
[null,null,null,null,null,null,null,null,null,null,null,null,null,null,null,null,null,null,null,"",null,"Niger ","EUR","euro",50,null,80,"2022-04-26",1,80]
[null,null,null,null,null,null,null,null,null,null,null,null,null,null,null,null,null,null,null,"",null,"Nigérie","EUR","euro",50,null,81,"2022-04-27",1,81]
[null,null,null,null,null,null,null,null,null,null,null,null,null,null,null,null,null,null,null,"",null,"Nikaragua","USD","americký dolar",45,null,82,"2022-04-28",1,82]
[null,null,null,null,null,null,null,null,null,null,null,null,null,null,null,null,null,null,null,"",null,"Nizozemsko","EUR","euro",50,null,83,"2022-04-29",1,83]
[null,null,null,null,null,null,null,null,null,null,null,null,null,null,null,null,null,null,null,"",null,"Norsko","EUR","euro",60,null,83,"2022-04-30",0,83]
[null,null,null,null,null,null,null,null,null,null,null,null,null,null,null,null,null,null,null,"",null,"Nový Zéland","USD","americký dolar",60,null,83,"2022-05-01",0,83]
[null,null,null,null,null,null,null,null,null,null,null,null,null,null,null,null,null,null,null,"",null,"Omán","EUR","euro",50,null,84,"2022-05-02",1,84]
[null,null,null,null,null,null,null,null,null,null,null,null,null,null,null,null,null,null,null,"",null,"Pákistán","EUR","euro",40,null,85,"2022-05-03",1,85]
[null,null,null,null,null,null,null,null,null,null,null,null,null,null,null,null,null,null,null,"",null,"Panama","USD","americký dolar",45,null,86,"2022-05-04",1,86]
[null,null,null,null,null,null,null,null,null,null,null,null,null,null,null,null,null,null,null,"",null,"Paraguay","USD","americký dolar",45,null,87,"2022-05-05",1,87]
[null,null,null,null,null,null,null,null,null,null,null,null,null,null,null,null,null,null,null,"",null,"Peru","USD","americký dolar",50,null,88,"2022-05-06",1,88]
[null,null,null,null,null,null,null,null,null,null,null,null,null,null,null,null,null,null,null,"",null,"Pobřeží Slonoviny","EUR","euro",40,null,88,"2022-05-07",0,88]
[null,null,null,null,null,null,null,null,null,null,null,null,null,null,null,null,null,null,null,"",null,"Polsko","EUR","euro",40,null,88,"2022-05-08",0,88]
[null,null,null,null,null,null,null,null,null,null,null,null,null,null,null,null,null,null,null,"",null,"Portugalsko a Azory","EUR","euro",40,null,89,"2022-05-09",1,89]
[null,null,null,null,null,null,null,null,null,null,null,null,null,null,null,null,null,null,null,"",null,"Rakousko","EUR","euro",45,null,{"$f":"AA131+AC132","v":90},"2022-05-10",1,90]
[null,null,null,null,null,null,null,null,null,null,null,null,null,null,null,null,null,null,null,{"$f":"RIGHT(S133,3)","v":""},null,"Rovníková Guinea","EUR","euro",50,null,91,"2022-05-11",1,{"$f":"AA132+AC133","v":91}]
[null,null,null,null,null,null,null,null,null,null,null,null,null,null,null,null,null,null,null,"",null,"Rumunsko","EUR","euro",40,null,92,"2022-05-12",1,92]
[null,null,null,null,null,null,null,null,null,null,null,null,null,null,null,null,null,null,null,"",null,"Rusko","EUR","euro",45,null,93,"2022-05-13",1,93]
[null,null,null,null,null,null,null,null,null,null,null,null,null,null,null,null,null,null,null,"",null,"Rwanda","USD","americký dolar",55,null,93,"2022-05-14",0,93]
[null,null,null,null,null,null,null,null,null,null,null,null,null,null,null,null,null,null,null,"",null,"Řecko","EUR","euro",40,null,93,"2022-05-15",0,93]
[null,null,null,null,null,null,null,null,null,null,null,null,null,null,null,null,null,null,null,"",null,"Salvador","USD","americký dolar",45,null,94,"2022-05-16",1,94]
[null,null,null,null,null,null,null,null,null,null,null,null,null,null,null,null,null,null,null,"",null,"Saúdská Arábie","EUR","euro",50,null,95,"2022-05-17",1,95]
[null,null,null,null,null,null,null,null,null,null,null,null,null,null,null,null,null,null,null,"",null,"Senegal","EUR","euro",50,null,96,"2022-05-18",1,96]
[null,null,null,null,null,null,null,null,null,null,null,null,null,null,null,null,null,null,null,"",null,"Severní Makedonie","EUR","euro",35,null,97,"2022-05-19",1,97]
[null,null,null,null,null,null,null,null,null,null,null,null,null,null,null,null,null,null,null,"",null,"Seychely","EUR","euro",55,null,98,"2022-05-20",1,98]
[null,null,null,null,null,null,null,null,null,null,null,null,null,null,null,null,null,null,null,"",null,"Sierra Leone","EUR","euro",40,null,98,"2022-05-21",0,98]
[null,null,null,null,null,null,null,null,null,null,null,null,null,null,null,null,null,null,null,"",null,"Singapur","USD","americký dolar",60,null,98,"2022-05-22",0,98]
[null,null,null,null,null,null,null,null,null,null,null,null,null,null,null,null,null,null,null,"",null,"Spojené arabské emiráty","USD","americký dolar",55,null,99,"2022-05-23",1,99]
[null,null,null,null,null,null,null,null,null,null,null,null,null,null,null,null,null,null,null,"",null,"Slovensko","EUR","euro",35,null,100,"2022-05-24",1,100]
[null,null,null,null,null,null,null,null,null,null,null,null,null,null,null,null,null,null,null,"",null,"Slovinsko","EUR","euro",40,null,101,"2022-05-25",1,101]
[null,null,null,null,null,null,null,null,null,null,null,null,null,null,null,null,null,null,null,"",null,"Somálsko","USD","americký dolar",55,null,102,"2022-05-26",1,102]
[null,null,null,null,null,null,null,null,null,null,null,null,null,null,null,null,null,null,null,"",null,"Spojené státy americké","USD","americký dolar",60,null,103,"2022-05-27",1,103]
[null,null,null,null,null,null,null,null,null,null,null,null,null,null,null,null,null,null,null,"",null,"Srbsko ","EUR","euro",35,null,103,"2022-05-28",0,103]
[null,null,null,null,null,null,null,null,null,null,null,null,null,null,null,null,null,null,null,"",null,"Srí Lanka","USD","americký dolar",50,null,103,"2022-05-29",0,103]
[null,null,null,null,null,null,null,null,null,null,null,null,null,null,null,null,null,null,null,"",null,"Středoafrická republika","USD","americký dolar",50,null,104,"2022-05-30",1,104]
[null,null,null,null,null,null,null,null,null,null,null,null,null,null,null,null,null,null,null,"",null,"Súdán","USD","americký dolar",55,null,105,"2022-05-31",1,105]
[null,null,null,null,null,null,null,null,null,null,null,null,null,null,null,null,null,null,null,"",null,"Surinam","USD","americký dolar",50,null,106,"2022-06-01",1,106]
[null,null,null,null,null,null,null,null,null,null,null,null,null,null,null,null,null,null,null,"",null,"Svatý Tomáš a Princův ostrov","EUR","euro",40,null,107,"2022-06-02",1,107]
[null,null,null,null,null,null,null,null,null,null,null,null,null,null,null,null,null,null,null,"",null,"Svazijsko ","USD","americký dolar",55,null,108,"2022-06-03",1,108]
[null,null,null,null,null,null,null,null,null,null,null,null,null,null,null,null,null,null,null,"",null,"Sýrie","EUR","euro",50,null,108,"2022-06-04",0,108]
[null,null,null,null,null,null,null,null,null,null,null,null,null,null,null,null,null,null,null,"",null,"Španělsko","EUR","euro",45,null,108,"2022-06-05",0,108]
[null,null,null,null,null,null,null,null,null,null,null,null,null,null,null,null,null,null,null,"",null,"Švédsko","EUR","euro",55,null,109,"2022-06-06",1,109]
[null,null,null,null,null,null,null,null,null,null,null,null,null,null,null,null,null,null,null,"",null,"Švýcarsko","CHF","švýcarský frank",75,null,110,"2022-06-07",1,110]
[null,null,null,null,null,null,null,null,null,null,null,null,null,null,null,null,null,null,null,"",null,"Tádžikistán","EUR","euro",40,null,111,"2022-06-08",1,111]
[null,null,null,null,null,null,null,null,null,null,null,null,null,null,null,null,null,null,null,"",null,"Tanzanie","USD","americký dolar",55,null,112,"2022-06-09",1,112]
[null,null,null,null,null,null,null,null,null,null,null,null,null,null,null,null,null,null,null,"",null,"Thajsko","EUR","euro",40,null,113,"2022-06-10",1,113]
[null,null,null,null,null,null,null,null,null,null,null,null,null,null,null,null,null,null,null,"",null,"Tchaj-wan","EUR","euro",45,null,113,"2022-06-11",0,113]
[null,null,null,null,null,null,null,null,null,null,null,null,null,null,null,null,null,null,null,"",null,"Togo ","EUR","euro",40,null,113,"2022-06-12",0,113]
[null,null,null,null,null,null,null,null,null,null,null,null,null,null,null,null,null,null,null,"",null,"Tunisko","EUR","euro",45,null,114,"2022-06-13",1,114]
[null,null,null,null,null,null,null,null,null,null,null,null,null,null,null,null,null,null,null,"",null,"Turecko","EUR","euro",40,null,115,"2022-06-14",1,115]
[null,null,null,null,null,null,null,null,null,null,null,null,null,null,null,null,null,null,null,"",null,"Turkmenistán","EUR","euro",45,null,116,"2022-06-15",1,116]
[null,null,null,null,null,null,null,null,null,null,null,null,null,null,null,null,null,null,null,"",null,"Uganda","USD","americký dolar",55,null,117,"2022-06-16",1,117]
[null,null,null,null,null,null,null,null,null,null,null,null,null,null,null,null,null,null,null,"",null,"Ukrajina","EUR","euro",45,null,118,"2022-06-17",1,118]
[null,null,null,null,null,null,null,null,null,null,null,null,null,null,null,null,null,null,null,"",null,"Uruguay","USD","americký dolar",50,null,118,"2022-06-18",0,118]
[null,null,null,null,null,null,null,null,null,null,null,null,null,null,null,null,null,null,null,"",null,"Uzbekistán","EUR","euro",40,null,118,"2022-06-19",0,118]
[null,null,null,null,null,null,null,null,null,null,null,null,null,null,null,null,null,null,null,"",null,"Velká Británie","GBP","anglická libra",45,null,119,"2022-06-20",1,119]
[null,null,null,null,null,null,null,null,null,null,null,null,null,null,null,null,null,null,null,"",null,"Venezuela","USD","americký dolar",65,null,120,"2022-06-21",1,120]
[null,null,null,null,null,null,null,null,null,null,null,null,null,null,null,null,null,null,null,"",null,"Vietnam","EUR","euro",40,null,121,"2022-06-22",1,121]
[null,null,null,null,null,null,null,null,null,null,null,null,null,null,null,null,null,null,null,"",null,"Zambie","USD","americký dolar",55,null,122,"2022-06-23",1,122]
[null,null,null,null,null,null,null,null,null,null,null,null,null,null,null,null,null,null,null,"",null,"Zimbabwe","USD","americký dolar",50,null,123,"2022-06-24",1,123]
[null,null,null,null,null,null,null,null,null,null,null,null,null,null,null,null,null,null,null,"",null,"Ostatní země neuvedené v příloze","EUR","euro",35,null,123,"2022-06-25",0,123]
[null,null,null,null,null,null,null,null,null,null,null,null,null,null,null,null,null,null,null,"",null,null,null,null,null,null,123,"2022-06-26",0,123]
[null,null,null,null,null,null,null,null,null,null,null,null,null,null,null,null,null,null,null,"",null,null,null,null,null,null,124,"2022-06-27",1,124]
[null,null,null,null,null,null,null,null,null,null,null,null,null,null,null,null,null,null,null,null,null,null,null,null,null,null,125,"2022-06-28",1,125]
[null,null,null,null,null,null,null,null,null,null,null,null,null,null,null,null,null,null,null,null,null,null,null,null,null,null,126,"2022-06-29",1,126]
[null,null,null,null,null,null,null,null,null,null,null,null,null,null,null,null,null,null,null,null,null,null,null,null,null,null,127,"2022-06-30",1,127]
[null,null,null,null,null,null,null,null,null,null,null,null,null,null,null,null,null,null,null,null,null,null,null,null,null,null,128,"2022-07-01",1,128]
[null,null,null,null,null,null,null,null,null,null,null,null,null,null,null,null,null,null,null,null,null,null,null,null,null,null,128,"2022-07-02",0,128]
[null,null,null,null,null,null,null,null,null,null,null,null,null,null,null,null,null,null,null,null,null,null,null,null,null,null,128,"2022-07-03",0,128]
[null,null,null,null,null,null,null,null,null,null,null,null,null,null,null,null,null,null,null,null,null,null,null,null,null,null,129,"2022-07-04",1,129]
[null,null,null,null,null,null,null,null,null,null,null,null,null,null,null,null,null,null,null,null,null,null,null,null,null,null,129,"2022-07-05",0,129]
[null,null,null,null,null,null,null,null,null,null,null,null,null,null,null,null,null,null,null,null,null,null,null,null,null,null,129,"2022-07-06",0,129]
[null,null,null,null,null,null,null,null,null,null,null,null,null,null,null,null,null,null,null,null,null,null,null,null,null,null,130,"2022-07-07",1,130]
[null,null,null,null,null,null,null,null,null,null,null,null,null,null,null,null,null,null,null,null,null,null,null,null,null,null,131,"2022-07-08",1,131]
[null,null,null,null,null,null,null,null,null,null,null,null,null,null,null,null,null,null,null,null,null,null,null,null,null,null,131,"2022-07-09",0,131]
[null,null,null,null,null,null,null,null,null,null,null,null,null,null,null,null,null,null,null,null,null,null,null,null,null,null,131,"2022-07-10",0,131]
[null,null,null,null,null,null,null,null,null,null,null,null,null,null,null,null,null,null,null,null,null,null,null,null,null,null,132,"2022-07-11",1,132]
[null,null,null,null,null,null,null,null,null,null,null,null,null,null,null,null,null,null,null,null,null,null,null,null,null,null,133,"2022-07-12",1,133]
[null,null,null,null,null,null,null,null,null,null,null,null,null,null,null,null,null,null,null,null,null,null,null,null,null,null,{"$f":"AA195+AC196","v":134},"2022-07-13",1,134]
[null,null,null,null,null,null,null,null,null,null,null,null,null,null,null,null,null,null,null,null,null,null,null,null,null,null,135,"2022-07-14",1,{"$f":"AA196+AC197","v":135}]
[null,null,null,null,null,null,null,null,null,null,null,null,null,null,null,null,null,null,null,null,null,null,null,null,null,null,136,"2022-07-15",1,136]
[null,null,null,null,null,null,null,null,null,null,null,null,null,null,null,null,null,null,null,null,null,null,null,null,null,null,136,"2022-07-16",0,136]
[null,null,null,null,null,null,null,null,null,null,null,null,null,null,null,null,null,null,null,null,null,null,null,null,null,null,136,"2022-07-17",0,136]
[null,null,null,null,null,null,null,null,null,null,null,null,null,null,null,null,null,null,null,null,null,null,null,null,null,null,137,"2022-07-18",1,137]
[null,null,null,null,null,null,null,null,null,null,null,null,null,null,null,null,null,null,null,null,null,null,null,null,null,null,138,"2022-07-19",1,138]
[null,null,null,null,null,null,null,null,null,null,null,null,null,null,null,null,null,null,null,null,null,null,null,null,null,null,139,"2022-07-20",1,139]
[null,null,null,null,null,null,null,null,null,null,null,null,null,null,null,null,null,null,null,null,null,null,null,null,null,null,140,"2022-07-21",1,140]
[null,null,null,null,null,null,null,null,null,null,null,null,null,null,null,null,null,null,null,null,null,null,null,null,null,null,141,"2022-07-22",1,141]
[null,null,null,null,null,null,null,null,null,null,null,null,null,null,null,null,null,null,null,null,null,null,null,null,null,null,141,"2022-07-23",0,141]
[null,null,null,null,null,null,null,null,null,null,null,null,null,null,null,null,null,null,null,null,null,null,null,null,null,null,141,"2022-07-24",0,141]
[null,null,null,null,null,null,null,null,null,null,null,null,null,null,null,null,null,null,null,null,null,null,null,null,null,null,142,"2022-07-25",1,142]
[null,null,null,null,null,null,null,null,null,null,null,null,null,null,null,null,null,null,null,null,null,null,null,null,null,null,143,"2022-07-26",1,143]
[null,null,null,null,null,null,null,null,null,null,null,null,null,null,null,null,null,null,null,null,null,null,null,null,null,null,144,"2022-07-27",1,144]
[null,null,null,null,null,null,null,null,null,null,null,null,null,null,null,null,null,null,null,null,null,null,null,null,null,null,145,"2022-07-28",1,145]
[null,null,null,null,null,null,null,null,null,null,null,null,null,null,null,null,null,null,null,null,null,null,null,null,null,null,146,"2022-07-29",1,146]
[null,null,null,null,null,null,null,null,null,null,null,null,null,null,null,null,null,null,null,null,null,null,null,null,null,null,146,"2022-07-30",0,146]
[null,null,null,null,null,null,null,null,null,null,null,null,null,null,null,null,null,null,null,null,null,null,null,null,null,null,146,"2022-07-31",0,146]
[null,null,null,null,null,null,null,null,null,null,null,null,null,null,null,null,null,null,null,null,null,null,null,null,null,null,147,"2022-08-01",1,147]
[null,null,null,null,null,null,null,null,null,null,null,null,null,null,null,null,null,null,null,null,null,null,null,null,null,null,148,"2022-08-02",1,148]
[null,null,null,null,null,null,null,null,null,null,null,null,null,null,null,null,null,null,null,null,null,null,null,null,null,null,149,"2022-08-03",1,149]
[null,null,null,null,null,null,null,null,null,null,null,null,null,null,null,null,null,null,null,null,null,null,null,null,null,null,150,"2022-08-04",1,150]
[null,null,null,null,null,null,null,null,null,null,null,null,null,null,null,null,null,null,null,null,null,null,null,null,null,null,151,"2022-08-05",1,151]
[null,null,null,null,null,null,null,null,null,null,null,null,null,null,null,null,null,null,null,null,null,null,null,null,null,null,151,"2022-08-06",0,151]
[null,null,null,null,null,null,null,null,null,null,null,null,null,null,null,null,null,null,null,null,null,null,null,null,null,null,151,"2022-08-07",0,151]
[null,null,null,null,null,null,null,null,null,null,null,null,null,null,null,null,null,null,null,null,null,null,null,null,null,null,152,"2022-08-08",1,152]
[null,null,null,null,null,null,null,null,null,null,null,null,null,null,null,null,null,null,null,null,null,null,null,null,null,null,153,"2022-08-09",1,153]
[null,null,null,null,null,null,null,null,null,null,null,null,null,null,null,null,null,null,null,null,null,null,null,null,null,null,154,"2022-08-10",1,154]
[null,null,null,null,null,null,null,null,null,null,null,null,null,null,null,null,null,null,null,null,null,null,null,null,null,null,155,"2022-08-11",1,155]
[null,null,null,null,null,null,null,null,null,null,null,null,null,null,null,null,null,null,null,null,null,null,null,null,null,null,156,"2022-08-12",1,156]
[null,null,null,null,null,null,null,null,null,null,null,null,null,null,null,null,null,null,null,null,null,null,null,null,null,null,156,"2022-08-13",0,156]
[null,null,null,null,null,null,null,null,null,null,null,null,null,null,null,null,null,null,null,null,null,null,null,null,null,null,156,"2022-08-14",0,156]
[null,null,null,null,null,null,null,null,null,null,null,null,null,null,null,null,null,null,null,null,null,null,null,null,null,null,157,"2022-08-15",1,157]
[null,null,null,null,null,null,null,null,null,null,null,null,null,null,null,null,null,null,null,null,null,null,null,null,null,null,158,"2022-08-16",1,158]
[null,null,null,null,null,null,null,null,null,null,null,null,null,null,null,null,null,null,null,null,null,null,null,null,null,null,159,"2022-08-17",1,159]
[null,null,null,null,null,null,null,null,null,null,null,null,null,null,null,null,null,null,null,null,null,null,null,null,null,null,160,"2022-08-18",1,160]
[null,null,null,null,null,null,null,null,null,null,null,null,null,null,null,null,null,null,null,null,null,null,null,null,null,null,161,"2022-08-19",1,161]
[null,null,null,null,null,null,null,null,null,null,null,null,null,null,null,null,null,null,null,null,null,null,null,null,null,null,161,"2022-08-20",0,161]
[null,null,null,null,null,null,null,null,null,null,null,null,null,null,null,null,null,null,null,null,null,null,null,null,null,null,161,"2022-08-21",0,161]
[null,null,null,null,null,null,null,null,null,null,null,null,null,null,null,null,null,null,null,null,null,null,null,null,null,null,162,"2022-08-22",1,162]
[null,null,null,null,null,null,null,null,null,null,null,null,null,null,null,null,null,null,null,null,null,null,null,null,null,null,163,"2022-08-23",1,163]
[null,null,null,null,null,null,null,null,null,null,null,null,null,null,null,null,null,null,null,null,null,null,null,null,null,null,164,"2022-08-24",1,164]
[null,null,null,null,null,null,null,null,null,null,null,null,null,null,null,null,null,null,null,null,null,null,null,null,null,null,165,"2022-08-25",1,165]
[null,null,null,null,null,null,null,null,null,null,null,null,null,null,null,null,null,null,null,null,null,null,null,null,null,null,166,"2022-08-26",1,166]
[null,null,null,null,null,null,null,null,null,null,null,null,null,null,null,null,null,null,null,null,null,null,null,null,null,null,166,"2022-08-27",0,166]
[null,null,null,null,null,null,null,null,null,null,null,null,null,null,null,null,null,null,null,null,null,null,null,null,null,null,166,"2022-08-28",0,166]
[null,null,null,null,null,null,null,null,null,null,null,null,null,null,null,null,null,null,null,null,null,null,null,null,null,null,167,"2022-08-29",1,167]
[null,null,null,null,null,null,null,null,null,null,null,null,null,null,null,null,null,null,null,null,null,null,null,null,null,null,168,"2022-08-30",1,168]
[null,null,null,null,null,null,null,null,null,null,null,null,null,null,null,null,null,null,null,null,null,null,null,null,null,null,169,"2022-08-31",1,169]
[null,null,null,null,null,null,null,null,null,null,null,null,null,null,null,null,null,null,null,null,null,null,null,null,null,null,170,"2022-09-01",1,170]
[null,null,null,null,null,null,null,null,null,null,null,null,null,null,null,null,null,null,null,null,null,null,null,null,null,null,171,"2022-09-02",1,171]
[null,null,null,null,null,null,null,null,null,null,null,null,null,null,null,null,null,null,null,null,null,null,null,null,null,null,171,"2022-09-03",0,171]
[null,null,null,null,null,null,null,null,null,null,null,null,null,null,null,null,null,null,null,null,null,null,null,null,null,null,171,"2022-09-04",0,171]
[null,null,null,null,null,null,null,null,null,null,null,null,null,null,null,null,null,null,null,null,null,null,null,null,null,null,172,"2022-09-05",1,172]
[null,null,null,null,null,null,null,null,null,null,null,null,null,null,null,null,null,null,null,null,null,null,null,null,null,null,173,"2022-09-06",1,173]
[null,null,null,null,null,null,null,null,null,null,null,null,null,null,null,null,null,null,null,null,null,null,null,null,null,null,174,"2022-09-07",1,174]
[null,null,null,null,null,null,null,null,null,null,null,null,null,null,null,null,null,null,null,null,null,null,null,null,null,null,175,"2022-09-08",1,175]
[null,null,null,null,null,null,null,null,null,null,null,null,null,null,null,null,null,null,null,null,null,null,null,null,null,null,176,"2022-09-09",1,176]
[null,null,null,null,null,null,null,null,null,null,null,null,null,null,null,null,null,null,null,null,null,null,null,null,null,null,176,"2022-09-10",0,176]
[null,null,null,null,null,null,null,null,null,null,null,null,null,null,null,null,null,null,null,null,null,null,null,null,null,null,176,"2022-09-11",0,176]
[null,null,null,null,null,null,null,null,null,null,null,null,null,null,null,null,null,null,null,null,null,null,null,null,null,null,177,"2022-09-12",1,177]
[null,null,null,null,null,null,null,null,null,null,null,null,null,null,null,null,null,null,null,null,null,null,null,null,null,null,178,"2022-09-13",1,178]
[null,null,null,null,null,null,null,null,null,null,null,null,null,null,null,null,null,null,null,null,null,null,null,null,null,null,179,"2022-09-14",1,179]
[null,null,null,null,null,null,null,null,null,null,null,null,null,null,null,null,null,null,null,null,null,null,null,null,null,null,{"$f":"AA259+AC260","v":180},"2022-09-15",1,180]
[null,null,null,null,null,null,null,null,null,null,null,null,null,null,null,null,null,null,null,null,null,null,null,null,null,null,181,"2022-09-16",1,{"$f":"AA260+AC261","v":181}]
[null,null,null,null,null,null,null,null,null,null,null,null,null,null,null,null,null,null,null,null,null,null,null,null,null,null,181,"2022-09-17",0,181]
[null,null,null,null,null,null,null,null,null,null,null,null,null,null,null,null,null,null,null,null,null,null,null,null,null,null,181,"2022-09-18",0,181]
[null,null,null,null,null,null,null,null,null,null,null,null,null,null,null,null,null,null,null,null,null,null,null,null,null,null,182,"2022-09-19",1,182]
[null,null,null,null,null,null,null,null,null,null,null,null,null,null,null,null,null,null,null,null,null,null,null,null,null,null,183,"2022-09-20",1,183]
[null,null,null,null,null,null,null,null,null,null,null,null,null,null,null,null,null,null,null,null,null,null,null,null,null,null,184,"2022-09-21",1,184]
[null,null,null,null,null,null,null,null,null,null,null,null,null,null,null,null,null,null,null,null,null,null,null,null,null,null,185,"2022-09-22",1,185]
[null,null,null,null,null,null,null,null,null,null,null,null,null,null,null,null,null,null,null,null,null,null,null,null,null,null,186,"2022-09-23",1,186]
[null,null,null,null,null,null,null,null,null,null,null,null,null,null,null,null,null,null,null,null,null,null,null,null,null,null,186,"2022-09-24",0,186]
[null,null,null,null,null,null,null,null,null,null,null,null,null,null,null,null,null,null,null,null,null,null,null,null,null,null,186,"2022-09-25",0,186]
[null,null,null,null,null,null,null,null,null,null,null,null,null,null,null,null,null,null,null,null,null,null,null,null,null,null,187,"2022-09-26",1,187]
[null,null,null,null,null,null,null,null,null,null,null,null,null,null,null,null,null,null,null,null,null,null,null,null,null,null,188,"2022-09-27",1,188]
[null,null,null,null,null,null,null,null,null,null,null,null,null,null,null,null,null,null,null,null,null,null,null,null,null,null,188,"2022-09-28",0,188]
[null,null,null,null,null,null,null,null,null,null,null,null,null,null,null,null,null,null,null,null,null,null,null,null,null,null,189,"2022-09-29",1,189]
[null,null,null,null,null,null,null,null,null,null,null,null,null,null,null,null,null,null,null,null,null,null,null,null,null,null,190,"2022-09-30",1,190]
[null,null,null,null,null,null,null,null,null,null,null,null,null,null,null,null,null,null,null,null,null,null,null,null,null,null,190,"2022-10-01",0,190]
[null,null,null,null,null,null,null,null,null,null,null,null,null,null,null,null,null,null,null,null,null,null,null,null,null,null,190,"2022-10-02",0,190]
[null,null,null,null,null,null,null,null,null,null,null,null,null,null,null,null,null,null,null,null,null,null,null,null,null,null,191,"2022-10-03",1,191]
[null,null,null,null,null,null,null,null,null,null,null,null,null,null,null,null,null,null,null,null,null,null,null,null,null,null,192,"2022-10-04",1,192]
[null,null,null,null,null,null,null,null,null,null,null,null,null,null,null,null,null,null,null,null,null,null,null,null,null,null,193,"2022-10-05",1,193]
[null,null,null,null,null,null,null,null,null,null,null,null,null,null,null,null,null,null,null,null,null,null,null,null,null,null,194,"2022-10-06",1,194]
[null,null,null,null,null,null,null,null,null,null,null,null,null,null,null,null,null,null,null,null,null,null,null,null,null,null,195,"2022-10-07",1,195]
[null,null,null,null,null,null,null,null,null,null,null,null,null,null,null,null,null,null,null,null,null,null,null,null,null,null,195,"2022-10-08",0,195]
[null,null,null,null,null,null,null,null,null,null,null,null,null,null,null,null,null,null,null,null,null,null,null,null,null,null,195,"2022-10-09",0,195]
[null,null,null,null,null,null,null,null,null,null,null,null,null,null,null,null,null,null,null,null,null,null,null,null,null,null,196,"2022-10-10",1,196]
[null,null,null,null,null,null,null,null,null,null,null,null,null,null,null,null,null,null,null,null,null,null,null,null,null,null,197,"2022-10-11",1,197]
[null,null,null,null,null,null,null,null,null,null,null,null,null,null,null,null,null,null,null,null,null,null,null,null,null,null,198,"2022-10-12",1,198]
[null,null,null,null,null,null,null,null,null,null,null,null,null,null,null,null,null,null,null,null,null,null,null,null,null,null,199,"2022-10-13",1,199]
[null,null,null,null,null,null,null,null,null,null,null,null,null,null,null,null,null,null,null,null,null,null,null,null,null,null,200,"2022-10-14",1,200]
[null,null,null,null,null,null,null,null,null,null,null,null,null,null,null,null,null,null,null,null,null,null,null,null,null,null,200,"2022-10-15",0,200]
[null,null,null,null,null,null,null,null,null,null,null,null,null,null,null,null,null,null,null,null,null,null,null,null,null,null,200,"2022-10-16",0,200]
[null,null,null,null,null,null,null,null,null,null,null,null,null,null,null,null,null,null,null,null,null,null,null,null,null,null,201,"2022-10-17",1,201]
[null,null,null,null,null,null,null,null,null,null,null,null,null,null,null,null,null,null,null,null,null,null,null,null,null,null,202,"2022-10-18",1,202]
[null,null,null,null,null,null,null,null,null,null,null,null,null,null,null,null,null,null,null,null,null,null,null,null,null,null,203,"2022-10-19",1,203]
[null,null,null,null,null,null,null,null,null,null,null,null,null,null,null,null,null,null,null,null,null,null,null,null,null,null,204,"2022-10-20",1,204]
[null,null,null,null,null,null,null,null,null,null,null,null,null,null,null,null,null,null,null,null,null,null,null,null,null,null,205,"2022-10-21",1,205]
[null,null,null,null,null,null,null,null,null,null,null,null,null,null,null,null,null,null,null,null,null,null,null,null,null,null,205,"2022-10-22",0,205]
[null,null,null,null,null,null,null,null,null,null,null,null,null,null,null,null,null,null,null,null,null,null,null,null,null,null,205,"2022-10-23",0,205]
[null,null,null,null,null,null,null,null,null,null,null,null,null,null,null,null,null,null,null,null,null,null,null,null,null,null,206,"2022-10-24",1,206]
[null,null,null,null,null,null,null,null,null,null,null,null,null,null,null,null,null,null,null,null,null,null,null,null,null,null,207,"2022-10-25",1,207]
[null,null,null,null,null,null,null,null,null,null,null,null,null,null,null,null,null,null,null,null,null,null,null,null,null,null,208,"2022-10-26",1,208]
[null,null,null,null,null,null,null,null,null,null,null,null,null,null,null,null,null,null,null,null,null,null,null,null,null,null,209,"2022-10-27",1,209]
[null,null,null,null,null,null,null,null,null,null,null,null,null,null,null,null,null,null,null,null,null,null,null,null,null,null,209,"2022-10-28",0,209]
[null,null,null,null,null,null,null,null,null,null,null,null,null,null,null,null,null,null,null,null,null,null,null,null,null,null,209,"2022-10-29",0,209]
[null,null,null,null,null,null,null,null,null,null,null,null,null,null,null,null,null,null,null,null,null,null,null,null,null,null,209,"2022-10-30",0,209]
[null,null,null,null,null,null,null,null,null,null,null,null,null,null,null,null,null,null,null,null,null,null,null,null,null,null,210,"2022-10-31",1,210]
[null,null,null,null,null,null,null,null,null,null,null,null,null,null,null,null,null,null,null,null,null,null,null,null,null,null,211,"2022-11-01",1,211]
[null,null,null,null,null,null,null,null,null,null,null,null,null,null,null,null,null,null,null,null,null,null,null,null,null,null,212,"2022-11-02",1,212]
[null,null,null,null,null,null,null,null,null,null,null,null,null,null,null,null,null,null,null,null,null,null,null,null,null,null,213,"2022-11-03",1,213]
[null,null,null,null,null,null,null,null,null,null,null,null,null,null,null,null,null,null,null,null,null,null,null,null,null,null,214,"2022-11-04",1,214]
[null,null,null,null,null,null,null,null,null,null,null,null,null,null,null,null,null,null,null,null,null,null,null,null,null,null,214,"2022-11-05",0,214]
[null,null,null,null,null,null,null,null,null,null,null,null,null,null,null,null,null,null,null,null,null,null,null,null,null,null,214,"2022-11-06",0,214]
[null,null,null,null,null,null,null,null,null,null,null,null,null,null,null,null,null,null,null,null,null,null,null,null,null,null,215,"2022-11-07",1,215]
[null,null,null,null,null,null,null,null,null,null,null,null,null,null,null,null,null,null,null,null,null,null,null,null,null,null,216,"2022-11-08",1,216]
[null,null,null,null,null,null,null,null,null,null,null,null,null,null,null,null,null,null,null,null,null,null,null,null,null,null,217,"2022-11-09",1,217]
[null,null,null,null,null,null,null,null,null,null,null,null,null,null,null,null,null,null,null,null,null,null,null,null,null,null,218,"2022-11-10",1,218]
[null,null,null,null,null,null,null,null,null,null,null,null,null,null,null,null,null,null,null,null,null,null,null,null,null,null,219,"2022-11-11",1,219]
[null,null,null,null,null,null,null,null,null,null,null,null,null,null,null,null,null,null,null,null,null,null,null,null,null,null,219,"2022-11-12",0,219]
[null,null,null,null,null,null,null,null,null,null,null,null,null,null,null,null,null,null,null,null,null,null,null,null,null,null,219,"2022-11-13",0,219]
[null,null,null,null,null,null,null,null,null,null,null,null,null,null,null,null,null,null,null,null,null,null,null,null,null,null,220,"2022-11-14",1,220]
[null,null,null,null,null,null,null,null,null,null,null,null,null,null,null,null,null,null,null,null,null,null,null,null,null,null,221,"2022-11-15",1,221]
[null,null,null,null,null,null,null,null,null,null,null,null,null,null,null,null,null,null,null,null,null,null,null,null,null,null,222,"2022-11-16",1,222]
[null,null,null,null,null,null,null,null,null,null,null,null,null,null,null,null,null,null,null,null,null,null,null,null,null,null,222,"2022-11-17",0,222]
[null,null,null,null,null,null,null,null,null,null,null,null,null,null,null,null,null,null,null,null,null,null,null,null,null,null,{"$f":"AA323+AC324","v":223},"2022-11-18",1,223]
[null,null,null,null,null,null,null,null,null,null,null,null,null,null,null,null,null,null,null,null,null,null,null,null,null,null,223,"2022-11-19",0,{"$f":"AA324+AC325","v":223}]
[null,null,null,null,null,null,null,null,null,null,null,null,null,null,null,null,null,null,null,null,null,null,null,null,null,null,223,"2022-11-20",0,223]
[null,null,null,null,null,null,null,null,null,null,null,null,null,null,null,null,null,null,null,null,null,null,null,null,null,null,224,"2022-11-21",1,224]
[null,null,null,null,null,null,null,null,null,null,null,null,null,null,null,null,null,null,null,null,null,null,null,null,null,null,225,"2022-11-22",1,225]
[null,null,null,null,null,null,null,null,null,null,null,null,null,null,null,null,null,null,null,null,null,null,null,null,null,null,226,"2022-11-23",1,226]
[null,null,null,null,null,null,null,null,null,null,null,null,null,null,null,null,null,null,null,null,null,null,null,null,null,null,227,"2022-11-24",1,227]
[null,null,null,null,null,null,null,null,null,null,null,null,null,null,null,null,null,null,null,null,null,null,null,null,null,null,228,"2022-11-25",1,228]
[null,null,null,null,null,null,null,null,null,null,null,null,null,null,null,null,null,null,null,null,null,null,null,null,null,null,228,"2022-11-26",0,228]
[null,null,null,null,null,null,null,null,null,null,null,null,null,null,null,null,null,null,null,null,null,null,null,null,null,null,228,"2022-11-27",0,228]
[null,null,null,null,null,null,null,null,null,null,null,null,null,null,null,null,null,null,null,null,null,null,null,null,null,null,229,"2022-11-28",1,229]
[null,null,null,null,null,null,null,null,null,null,null,null,null,null,null,null,null,null,null,null,null,null,null,null,null,null,230,"2022-11-29",1,230]
[null,null,null,null,null,null,null,null,null,null,null,null,null,null,null,null,null,null,null,null,null,null,null,null,null,null,231,"2022-11-30",1,231]
[null,null,null,null,null,null,null,null,null,null,null,null,null,null,null,null,null,null,null,null,null,null,null,null,null,null,232,"2022-12-01",1,232]
[null,null,null,null,null,null,null,null,null,null,null,null,null,null,null,null,null,null,null,null,null,null,null,null,null,null,233,"2022-12-02",1,233]
[null,null,null,null,null,null,null,null,null,null,null,null,null,null,null,null,null,null,null,null,null,null,null,null,null,null,233,"2022-12-03",0,233]
[null,null,null,null,null,null,null,null,null,null,null,null,null,null,null,null,null,null,null,null,null,null,null,null,null,null,233,"2022-12-04",0,233]
[null,null,null,null,null,null,null,null,null,null,null,null,null,null,null,null,null,null,null,null,null,null,null,null,null,null,234,"2022-12-05",1,234]
[null,null,null,null,null,null,null,null,null,null,null,null,null,null,null,null,null,null,null,null,null,null,null,null,null,null,235,"2022-12-06",1,235]
[null,null,null,null,null,null,null,null,null,null,null,null,null,null,null,null,null,null,null,null,null,null,null,null,null,null,236,"2022-12-07",1,236]
[null,null,null,null,null,null,null,null,null,null,null,null,null,null,null,null,null,null,null,null,null,null,null,null,null,null,237,"2022-12-08",1,237]
[null,null,null,null,null,null,null,null,null,null,null,null,null,null,null,null,null,null,null,null,null,null,null,null,null,null,238,"2022-12-09",1,238]
[null,null,null,null,null,null,null,null,null,null,null,null,null,null,null,null,null,null,null,null,null,null,null,null,null,null,238,"2022-12-10",0,238]
[null,null,null,null,null,null,null,null,null,null,null,null,null,null,null,null,null,null,null,null,null,null,null,null,null,null,238,"2022-12-11",0,238]
[null,null,null,null,null,null,null,null,null,null,null,null,null,null,null,null,null,null,null,null,null,null,null,null,null,null,239,"2022-12-12",1,239]
[null,null,null,null,null,null,null,null,null,null,null,null,null,null,null,null,null,null,null,null,null,null,null,null,null,null,240,"2022-12-13",1,240]
[null,null,null,null,null,null,null,null,null,null,null,null,null,null,null,null,null,null,null,null,null,null,null,null,null,null,241,"2022-12-14",1,241]
[null,null,null,null,null,null,null,null,null,null,null,null,null,null,null,null,null,null,null,null,null,null,null,null,null,null,242,"2022-12-15",1,242]
[null,null,null,null,null,null,null,null,null,null,null,null,null,null,null,null,null,null,null,null,null,null,null,null,null,null,243,"2022-12-16",1,243]
[null,null,null,null,null,null,null,null,null,null,null,null,null,null,null,null,null,null,null,null,null,null,null,null,null,null,243,"2022-12-17",0,243]
[null,null,null,null,null,null,null,null,null,null,null,null,null,null,null,null,null,null,null,null,null,null,null,null,null,null,243,"2022-12-18",0,243]
[null,null,null,null,null,null,null,null,null,null,null,null,null,null,null,null,null,null,null,null,null,null,null,null,null,null,244,"2022-12-19",1,244]
[null,null,null,null,null,null,null,null,null,null,null,null,null,null,null,null,null,null,null,null,null,null,null,null,null,null,245,"2022-12-20",1,245]
[null,null,null,null,null,null,null,null,null,null,null,null,null,null,null,null,null,null,null,null,null,null,null,null,null,null,246,"2022-12-21",1,246]
[null,null,null,null,null,null,null,null,null,null,null,null,null,null,null,null,null,null,null,null,null,null,null,null,null,null,247,"2022-12-22",1,247]
[null,null,null,null,null,null,null,null,null,null,null,null,null,null,null,null,null,null,null,null,null,null,null,null,null,null,248,"2022-12-23",1,248]
[null,null,null,null,null,null,null,null,null,null,null,null,null,null,null,null,null,null,null,null,null,null,null,null,null,null,248,"2022-12-24",0,248]
[null,null,null,null,null,null,null,null,null,null,null,null,null,null,null,null,null,null,null,null,null,null,null,null,null,null,248,"2022-12-25",0,248]
[null,null,null,null,null,null,null,null,null,null,null,null,null,null,null,null,null,null,null,null,null,null,null,null,null,null,248,"2022-12-26",0,248]
[null,null,null,null,null,null,null,null,null,null,null,null,null,null,null,null,null,null,null,null,null,null,null,null,null,null,249,"2022-12-27",1,249]
[null,null,null,null,null,null,null,null,null,null,null,null,null,null,null,null,null,null,null,null,null,null,null,null,null,null,250,"2022-12-28",1,250]
[null,null,null,null,null,null,null,null,null,null,null,null,null,null,null,null,null,null,null,null,null,null,null,null,null,null,251,"2022-12-29",1,251]
[null,null,null,null,null,null,null,null,null,null,null,null,null,null,null,null,null,null,null,null,null,null,null,null,null,null,252,"2022-12-30",1,252]
[null,null,null,null,null,null,null,null,null,null,null,null,null,null,null,null,null,null,null,null,null,null,null,null,null,null,252,"2022-12-31",0,252]
[null,null,null,null,null,null,null,null,null,null,null,null,null,null,null,null,null,null,null,null,null,null,null,null,null,null,252,"2023-01-01",0,252]
[null,null,null,null,null,null,null,null,null,null,null,null,null,null,null,null,null,null,null,null,null,null,null,null,null,null,253,"2023-01-02",1,253]
[null,null,null,null,null,null,null,null,null,null,null,null,null,null,null,null,null,null,null,null,null,null,null,null,null,null,254,"2023-01-03",1,254]
[null,null,null,null,null,null,null,null,null,null,null,null,null,null,null,null,null,null,null,null,null,null,null,null,null,null,255,"2023-01-04",1,255]
[null,null,null,null,null,null,null,null,null,null,null,null,null,null,null,null,null,null,null,null,null,null,null,null,null,null,256,"2023-01-05",1,256]
[null,null,null,null,null,null,null,null,null,null,null,null,null,null,null,null,null,null,null,null,null,null,null,null,null,null,257,"2023-01-06",1,257]
[null,null,null,null,null,null,null,null,null,null,null,null,null,null,null,null,null,null,null,null,null,null,null,null,null,null,257,"2023-01-07",0,257]
[null,null,null,null,null,null,null,null,null,null,null,null,null,null,null,null,null,null,null,null,null,null,null,null,null,null,257,"2023-01-08",0,257]
[null,null,null,null,null,null,null,null,null,null,null,null,null,null,null,null,null,null,null,null,null,null,null,null,null,null,258,"2023-01-09",1,258]
[null,null,null,null,null,null,null,null,null,null,null,null,null,null,null,null,null,null,null,null,null,null,null,null,null,null,259,"2023-01-10",1,259]
[null,null,null,null,null,null,null,null,null,null,null,null,null,null,null,null,null,null,null,null,null,null,null,null,null,null,260,"2023-01-11",1,260]
[null,null,null,null,null,null,null,null,null,null,null,null,null,null,null,null,null,null,null,null,null,null,null,null,null,null,261,"2023-01-12",1,261]
[null,null,null,null,null,null,null,null,null,null,null,null,null,null,null,null,null,null,null,null,null,null,null,null,null,null,262,"2023-01-13",1,262]
[null,null,null,null,null,null,null,null,null,null,null,null,null,null,null,null,null,null,null,null,null,null,null,null,null,null,262,"2023-01-14",0,262]
[null,null,null,null,null,null,null,null,null,null,null,null,null,null,null,null,null,null,null,null,null,null,null,null,null,null,262,"2023-01-15",0,262]
[null,null,null,null,null,null,null,null,null,null,null,null,null,null,null,null,null,null,null,null,null,null,null,null,null,null,263,"2023-01-16",1,263]
[null,null,null,null,null,null,null,null,null,null,null,null,null,null,null,null,null,null,null,null,null,null,null,null,null,null,264,"2023-01-17",1,264]
[null,null,null,null,null,null,null,null,null,null,null,null,null,null,null,null,null,null,null,null,null,null,null,null,null,null,265,"2023-01-18",1,265]
[null,null,null,null,null,null,null,null,null,null,null,null,null,null,null,null,null,null,null,null,null,null,null,null,null,null,266,"2023-01-19",1,266]
[null,null,null,null,null,null,null,null,null,null,null,null,null,null,null,null,null,null,null,null,null,null,null,null,null,null,267,"2023-01-20",1,267]
[null,null,null,null,null,null,null,null,null,null,null,null,null,null,null,null,null,null,null,null,null,null,null,null,null,null,{"$f":"AA387+AC388","v":267},"2023-01-21",0,267]
[null,null,null,null,null,null,null,null,null,null,null,null,null,null,null,null,null,null,null,null,null,null,null,null,null,null,267,"2023-01-22",0,{"$f":"AA388+AC389","v":267}]
[null,null,null,null,null,null,null,null,null,null,null,null,null,null,null,null,null,null,null,null,null,null,null,null,null,null,268,"2023-01-23",1,268]
[null,null,null,null,null,null,null,null,null,null,null,null,null,null,null,null,null,null,null,null,null,null,null,null,null,null,269,"2023-01-24",1,269]
[null,null,null,null,null,null,null,null,null,null,null,null,null,null,null,null,null,null,null,null,null,null,null,null,null,null,270,"2023-01-25",1,270]
[null,null,null,null,null,null,null,null,null,null,null,null,null,null,null,null,null,null,null,null,null,null,null,null,null,null,271,"2023-01-26",1,271]
[null,null,null,null,null,null,null,null,null,null,null,null,null,null,null,null,null,null,null,null,null,null,null,null,null,null,272,"2023-01-27",1,272]
[null,null,null,null,null,null,null,null,null,null,null,null,null,null,null,null,null,null,null,null,null,null,null,null,null,null,272,"2023-01-28",0,272]
[null,null,null,null,null,null,null,null,null,null,null,null,null,null,null,null,null,null,null,null,null,null,null,null,null,null,272,"2023-01-29",0,272]
[null,null,null,null,null,null,null,null,null,null,null,null,null,null,null,null,null,null,null,null,null,null,null,null,null,null,273,"2023-01-30",1,273]
[null,null,null,null,null,null,null,null,null,null,null,null,null,null,null,null,null,null,null,null,null,null,null,null,null,null,274,"2023-01-31",1,274]
[null,null,null,null,null,null,null,null,null,null,null,null,null,null,null,null,null,null,null,null,null,null,null,null,null,null,275,"2023-02-01",1,275]
[null,null,null,null,null,null,null,null,null,null,null,null,null,null,null,null,null,null,null,null,null,null,null,null,null,null,276,"2023-02-02",1,276]
[null,null,null,null,null,null,null,null,null,null,null,null,null,null,null,null,null,null,null,null,null,null,null,null,null,null,277,"2023-02-03",1,277]
[null,null,null,null,null,null,null,null,null,null,null,null,null,null,null,null,null,null,null,null,null,null,null,null,null,null,277,"2023-02-04",0,277]
[null,null,null,null,null,null,null,null,null,null,null,null,null,null,null,null,null,null,null,null,null,null,null,null,null,null,277,"2023-02-05",0,277]
[null,null,null,null,null,null,null,null,null,null,null,null,null,null,null,null,null,null,null,null,null,null,null,null,null,null,278,"2023-02-06",1,278]
[null,null,null,null,null,null,null,null,null,null,null,null,null,null,null,null,null,null,null,null,null,null,null,null,null,null,279,"2023-02-07",1,279]
[null,null,null,null,null,null,null,null,null,null,null,null,null,null,null,null,null,null,null,null,null,null,null,null,null,null,280,"2023-02-08",1,280]
[null,null,null,null,null,null,null,null,null,null,null,null,null,null,null,null,null,null,null,null,null,null,null,null,null,null,281,"2023-02-09",1,281]
[null,null,null,null,null,null,null,null,null,null,null,null,null,null,null,null,null,null,null,null,null,null,null,null,null,null,282,"2023-02-10",1,282]
[null,null,null,null,null,null,null,null,null,null,null,null,null,null,null,null,null,null,null,null,null,null,null,null,null,null,282,"2023-02-11",0,282]
[null,null,null,null,null,null,null,null,null,null,null,null,null,null,null,null,null,null,null,null,null,null,null,null,null,null,282,"2023-02-12",0,282]
[null,null,null,null,null,null,null,null,null,null,null,null,null,null,null,null,null,null,null,null,null,null,null,null,null,null,283,"2023-02-13",1,283]
[null,null,null,null,null,null,null,null,null,null,null,null,null,null,null,null,null,null,null,null,null,null,null,null,null,null,284,"2023-02-14",1,284]
[null,null,null,null,null,null,null,null,null,null,null,null,null,null,null,null,null,null,null,null,null,null,null,null,null,null,285,"2023-02-15",1,285]
[null,null,null,null,null,null,null,null,null,null,null,null,null,null,null,null,null,null,null,null,null,null,null,null,null,null,286,"2023-02-16",1,286]
[null,null,null,null,null,null,null,null,null,null,null,null,null,null,null,null,null,null,null,null,null,null,null,null,null,null,287,"2023-02-17",1,287]
[null,null,null,null,null,null,null,null,null,null,null,null,null,null,null,null,null,null,null,null,null,null,null,null,null,null,287,"2023-02-18",0,287]
[null,null,null,null,null,null,null,null,null,null,null,null,null,null,null,null,null,null,null,null,null,null,null,null,null,null,287,"2023-02-19",0,287]
[null,null,null,null,null,null,null,null,null,null,null,null,null,null,null,null,null,null,null,null,null,null,null,null,null,null,288,"2023-02-20",1,288]
[null,null,null,null,null,null,null,null,null,null,null,null,null,null,null,null,null,null,null,null,null,null,null,null,null,null,289,"2023-02-21",1,289]
[null,null,null,null,null,null,null,null,null,null,null,null,null,null,null,null,null,null,null,null,null,null,null,null,null,null,290,"2023-02-22",1,290]
[null,null,null,null,null,null,null,null,null,null,null,null,null,null,null,null,null,null,null,null,null,null,null,null,null,null,291,"2023-02-23",1,291]
[null,null,null,null,null,null,null,null,null,null,null,null,null,null,null,null,null,null,null,null,null,null,null,null,null,null,292,"2023-02-24",1,292]
[null,null,null,null,null,null,null,null,null,null,null,null,null,null,null,null,null,null,null,null,null,null,null,null,null,null,292,"2023-02-25",0,292]
[null,null,null,null,null,null,null,null,null,null,null,null,null,null,null,null,null,null,null,null,null,null,null,null,null,null,292,"2023-02-26",0,292]
[null,null,null,null,null,null,null,null,null,null,null,null,null,null,null,null,null,null,null,null,null,null,null,null,null,null,293,"2023-02-27",1,293]
[null,null,null,null,null,null,null,null,null,null,null,null,null,null,null,null,null,null,null,null,null,null,null,null,null,null,294,"2023-02-28",1,294]
[null,null,null,null,null,null,null,null,null,null,null,null,null,null,null,null,null,null,null,null,null,null,null,null,null,null,295,"2023-03-01",1,295]
[null,null,null,null,null,null,null,null,null,null,null,null,null,null,null,null,null,null,null,null,null,null,null,null,null,null,296,"2023-03-02",1,296]
[null,null,null,null,null,null,null,null,null,null,null,null,null,null,null,null,null,null,null,null,null,null,null,null,null,null,297,"2023-03-03",1,297]
[null,null,null,null,null,null,null,null,null,null,null,null,null,null,null,null,null,null,null,null,null,null,null,null,null,null,297,"2023-03-04",0,297]
[null,null,null,null,null,null,null,null,null,null,null,null,null,null,null,null,null,null,null,null,null,null,null,null,null,null,297,"2023-03-05",0,297]
[null,null,null,null,null,null,null,null,null,null,null,null,null,null,null,null,null,null,null,null,null,null,null,null,null,null,298,"2023-03-06",1,298]
[null,null,null,null,null,null,null,null,null,null,null,null,null,null,null,null,null,null,null,null,null,null,null,null,null,null,299,"2023-03-07",1,299]
[null,null,null,null,null,null,null,null,null,null,null,null,null,null,null,null,null,null,null,null,null,null,null,null,null,null,300,"2023-03-08",1,300]
[null,null,null,null,null,null,null,null,null,null,null,null,null,null,null,null,null,null,null,null,null,null,null,null,null,null,301,"2023-03-09",1,301]
[null,null,null,null,null,null,null,null,null,null,null,null,null,null,null,null,null,null,null,null,null,null,null,null,null,null,302,"2023-03-10",1,302]
[null,null,null,null,null,null,null,null,null,null,null,null,null,null,null,null,null,null,null,null,null,null,null,null,null,null,302,"2023-03-11",0,302]
[null,null,null,null,null,null,null,null,null,null,null,null,null,null,null,null,null,null,null,null,null,null,null,null,null,null,302,"2023-03-12",0,302]
[null,null,null,null,null,null,null,null,null,null,null,null,null,null,null,null,null,null,null,null,null,null,null,null,null,null,303,"2023-03-13",1,303]
[null,null,null,null,null,null,null,null,null,null,null,null,null,null,null,null,null,null,null,null,null,null,null,null,null,null,304,"2023-03-14",1,304]
[null,null,null,null,null,null,null,null,null,null,null,null,null,null,null,null,null,null,null,null,null,null,null,null,null,null,305,"2023-03-15",1,305]
[null,null,null,null,null,null,null,null,null,null,null,null,null,null,null,null,null,null,null,null,null,null,null,null,null,null,306,"2023-03-16",1,306]
[null,null,null,null,null,null,null,null,null,null,null,null,null,null,null,null,null,null,null,null,null,null,null,null,null,null,307,"2023-03-17",1,307]
[null,null,null,null,null,null,null,null,null,null,null,null,null,null,null,null,null,null,null,null,null,null,null,null,null,null,307,"2023-03-18",0,307]
[null,null,null,null,null,null,null,null,null,null,null,null,null,null,null,null,null,null,null,null,null,null,null,null,null,null,307,"2023-03-19",0,307]
[null,null,null,null,null,null,null,null,null,null,null,null,null,null,null,null,null,null,null,null,null,null,null,null,null,null,308,"2023-03-20",1,308]
[null,null,null,null,null,null,null,null,null,null,null,null,null,null,null,null,null,null,null,null,null,null,null,null,null,null,309,"2023-03-21",1,309]
[null,null,null,null,null,null,null,null,null,null,null,null,null,null,null,null,null,null,null,null,null,null,null,null,null,null,310,"2023-03-22",1,310]
[null,null,null,null,null,null,null,null,null,null,null,null,null,null,null,null,null,null,null,null,null,null,null,null,null,null,311,"2023-03-23",1,311]
[null,null,null,null,null,null,null,null,null,null,null,null,null,null,null,null,null,null,null,null,null,null,null,null,null,null,312,"2023-03-24",1,312]
[null,null,null,null,null,null,null,null,null,null,null,null,null,null,null,null,null,null,null,null,null,null,null,null,null,null,312,"2023-03-25",0,312]
[null,null,null,null,null,null,null,null,null,null,null,null,null,null,null,null,null,null,null,null,null,null,null,null,null,null,{"$f":"AA451+AC452","v":312},"2023-03-26",0,312]
[null,null,null,null,null,null,null,null,null,null,null,null,null,null,null,null,null,null,null,null,null,null,null,null,null,null,313,"2023-03-27",1,{"$f":"AA452+AC453","v":313}]
[null,null,null,null,null,null,null,null,null,null,null,null,null,null,null,null,null,null,null,null,null,null,null,null,null,null,314,"2023-03-28",1,314]
[null,null,null,null,null,null,null,null,null,null,null,null,null,null,null,null,null,null,null,null,null,null,null,null,null,null,315,"2023-03-29",1,315]
[null,null,null,null,null,null,null,null,null,null,null,null,null,null,null,null,null,null,null,null,null,null,null,null,null,null,316,"2023-03-30",1,316]
[null,null,null,null,null,null,null,null,null,null,null,null,null,null,null,null,null,null,null,null,null,null,null,null,null,null,317,"2023-03-31",1,317]
[null,null,null,null,null,null,null,null,null,null,null,null,null,null,null,null,null,null,null,null,null,null,null,null,null,null,317,"2023-04-01",0,317]
[null,null,null,null,null,null,null,null,null,null,null,null,null,null,null,null,null,null,null,null,null,null,null,null,null,null,317,"2023-04-02",0,317]
[null,null,null,null,null,null,null,null,null,null,null,null,null,null,null,null,null,null,null,null,null,null,null,null,null,null,318,"2023-04-03",1,318]
[null,null,null,null,null,null,null,null,null,null,null,null,null,null,null,null,null,null,null,null,null,null,null,null,null,null,319,"2023-04-04",1,319]
[null,null,null,null,null,null,null,null,null,null,null,null,null,null,null,null,null,null,null,null,null,null,null,null,null,null,320,"2023-04-05",1,320]
[null,null,null,null,null,null,null,null,null,null,null,null,null,null,null,null,null,null,null,null,null,null,null,null,null,null,321,"2023-04-06",1,321]
[null,null,null,null,null,null,null,null,null,null,null,null,null,null,null,null,null,null,null,null,null,null,null,null,null,null,321,"2023-04-07",0,321]
[null,null,null,null,null,null,null,null,null,null,null,null,null,null,null,null,null,null,null,null,null,null,null,null,null,null,321,"2023-04-08",0,321]
[null,null,null,null,null,null,null,null,null,null,null,null,null,null,null,null,null,null,null,null,null,null,null,null,null,null,321,"2023-04-09",0,321]
[null,null,null,null,null,null,null,null,null,null,null,null,null,null,null,null,null,null,null,null,null,null,null,null,null,null,321,"2023-04-10",0,321]
[null,null,null,null,null,null,null,null,null,null,null,null,null,null,null,null,null,null,null,null,null,null,null,null,null,null,322,"2023-04-11",1,322]
[null,null,null,null,null,null,null,null,null,null,null,null,null,null,null,null,null,null,null,null,null,null,null,null,null,null,323,"2023-04-12",1,323]
[null,null,null,null,null,null,null,null,null,null,null,null,null,null,null,null,null,null,null,null,null,null,null,null,null,null,324,"2023-04-13",1,324]
[null,null,null,null,null,null,null,null,null,null,null,null,null,null,null,null,null,null,null,null,null,null,null,null,null,null,325,"2023-04-14",1,325]
[null,null,null,null,null,null,null,null,null,null,null,null,null,null,null,null,null,null,null,null,null,null,null,null,null,null,325,"2023-04-15",0,325]
[null,null,null,null,null,null,null,null,null,null,null,null,null,null,null,null,null,null,null,null,null,null,null,null,null,null,325,"2023-04-16",0,325]
[null,null,null,null,null,null,null,null,null,null,null,null,null,null,null,null,null,null,null,null,null,null,null,null,null,null,326,"2023-04-17",1,326]
[null,null,null,null,null,null,null,null,null,null,null,null,null,null,null,null,null,null,null,null,null,null,null,null,null,null,327,"2023-04-18",1,327]
[null,null,null,null,null,null,null,null,null,null,null,null,null,null,null,null,null,null,null,null,null,null,null,null,null,null,328,"2023-04-19",1,328]
[null,null,null,null,null,null,null,null,null,null,null,null,null,null,null,null,null,null,null,null,null,null,null,null,null,null,329,"2023-04-20",1,329]
[null,null,null,null,null,null,null,null,null,null,null,null,null,null,null,null,null,null,null,null,null,null,null,null,null,null,330,"2023-04-21",1,330]
[null,null,null,null,null,null,null,null,null,null,null,null,null,null,null,null,null,null,null,null,null,null,null,null,null,null,330,"2023-04-22",0,330]
[null,null,null,null,null,null,null,null,null,null,null,null,null,null,null,null,null,null,null,null,null,null,null,null,null,null,330,"2023-04-23",0,330]
[null,null,null,null,null,null,null,null,null,null,null,null,null,null,null,null,null,null,null,null,null,null,null,null,null,null,331,"2023-04-24",1,331]
[null,null,null,null,null,null,null,null,null,null,null,null,null,null,null,null,null,null,null,null,null,null,null,null,null,null,332,"2023-04-25",1,332]
[null,null,null,null,null,null,null,null,null,null,null,null,null,null,null,null,null,null,null,null,null,null,null,null,null,null,333,"2023-04-26",1,333]
[null,null,null,null,null,null,null,null,null,null,null,null,null,null,null,null,null,null,null,null,null,null,null,null,null,null,334,"2023-04-27",1,334]
[null,null,null,null,null,null,null,null,null,null,null,null,null,null,null,null,null,null,null,null,null,null,null,null,null,null,335,"2023-04-28",1,335]
[null,null,null,null,null,null,null,null,null,null,null,null,null,null,null,null,null,null,null,null,null,null,null,null,null,null,335,"2023-04-29",0,335]
[null,null,null,null,null,null,null,null,null,null,null,null,null,null,null,null,null,null,null,null,null,null,null,null,null,null,335,"2023-04-30",0,335]
[null,null,null,null,null,null,null,null,null,null,null,null,null,null,null,null,null,null,null,null,null,null,null,null,null,null,335,"2023-05-01",0,335]
[null,null,null,null,null,null,null,null,null,null,null,null,null,null,null,null,null,null,null,null,null,null,null,null,null,null,336,"2023-05-02",1,336]
[null,null,null,null,null,null,null,null,null,null,null,null,null,null,null,null,null,null,null,null,null,null,null,null,null,null,337,"2023-05-03",1,337]
[null,null,null,null,null,null,null,null,null,null,null,null,null,null,null,null,null,null,null,null,null,null,null,null,null,null,338,"2023-05-04",1,338]
[null,null,null,null,null,null,null,null,null,null,null,null,null,null,null,null,null,null,null,null,null,null,null,null,null,null,339,"2023-05-05",1,339]
[null,null,null,null,null,null,null,null,null,null,null,null,null,null,null,null,null,null,null,null,null,null,null,null,null,null,339,"2023-05-06",0,339]
[null,null,null,null,null,null,null,null,null,null,null,null,null,null,null,null,null,null,null,null,null,null,null,null,null,null,339,"2023-05-07",0,339]
[null,null,null,null,null,null,null,null,null,null,null,null,null,null,null,null,null,null,null,null,null,null,null,null,null,null,339,"2023-05-08",0,339]
[null,null,null,null,null,null,null,null,null,null,null,null,null,null,null,null,null,null,null,null,null,null,null,null,null,null,340,"2023-05-09",1,340]
[null,null,null,null,null,null,null,null,null,null,null,null,null,null,null,null,null,null,null,null,null,null,null,null,null,null,341,"2023-05-10",1,341]
[null,null,null,null,null,null,null,null,null,null,null,null,null,null,null,null,null,null,null,null,null,null,null,null,null,null,342,"2023-05-11",1,342]
[null,null,null,null,null,null,null,null,null,null,null,null,null,null,null,null,null,null,null,null,null,null,null,null,null,null,343,"2023-05-12",1,343]
[null,null,null,null,null,null,null,null,null,null,null,null,null,null,null,null,null,null,null,null,null,null,null,null,null,null,343,"2023-05-13",0,343]
[null,null,null,null,null,null,null,null,null,null,null,null,null,null,null,null,null,null,null,null,null,null,null,null,null,null,343,"2023-05-14",0,343]
[null,null,null,null,null,null,null,null,null,null,null,null,null,null,null,null,null,null,null,null,null,null,null,null,null,null,344,"2023-05-15",1,344]
[null,null,null,null,null,null,null,null,null,null,null,null,null,null,null,null,null,null,null,null,null,null,null,null,null,null,345,"2023-05-16",1,345]
[null,null,null,null,null,null,null,null,null,null,null,null,null,null,null,null,null,null,null,null,null,null,null,null,null,null,346,"2023-05-17",1,346]
[null,null,null,null,null,null,null,null,null,null,null,null,null,null,null,null,null,null,null,null,null,null,null,null,null,null,347,"2023-05-18",1,347]
[null,null,null,null,null,null,null,null,null,null,null,null,null,null,null,null,null,null,null,null,null,null,null,null,null,null,348,"2023-05-19",1,348]
[null,null,null,null,null,null,null,null,null,null,null,null,null,null,null,null,null,null,null,null,null,null,null,null,null,null,348,"2023-05-20",0,348]
[null,null,null,null,null,null,null,null,null,null,null,null,null,null,null,null,null,null,null,null,null,null,null,null,null,null,348,"2023-05-21",0,348]
[null,null,null,null,null,null,null,null,null,null,null,null,null,null,null,null,null,null,null,null,null,null,null,null,null,null,349,"2023-05-22",1,349]
[null,null,null,null,null,null,null,null,null,null,null,null,null,null,null,null,null,null,null,null,null,null,null,null,null,null,350,"2023-05-23",1,350]
[null,null,null,null,null,null,null,null,null,null,null,null,null,null,null,null,null,null,null,null,null,null,null,null,null,null,351,"2023-05-24",1,351]
[null,null,null,null,null,null,null,null,null,null,null,null,null,null,null,null,null,null,null,null,null,null,null,null,null,null,352,"2023-05-25",1,352]
[null,null,null,null,null,null,null,null,null,null,null,null,null,null,null,null,null,null,null,null,null,null,null,null,null,null,353,"2023-05-26",1,353]
[null,null,null,null,null,null,null,null,null,null,null,null,null,null,null,null,null,null,null,null,null,null,null,null,null,null,353,"2023-05-27",0,353]
[null,null,null,null,null,null,null,null,null,null,null,null,null,null,null,null,null,null,null,null,null,null,null,null,null,null,353,"2023-05-28",0,353]
[null,null,null,null,null,null,null,null,null,null,null,null,null,null,null,null,null,null,null,null,null,null,null,null,null,null,{"$f":"AA515+AC516","v":354},"2023-05-29",1,354]
[null,null,null,null,null,null,null,null,null,null,null,null,null,null,null,null,null,null,null,null,null,null,null,null,null,null,355,"2023-05-30",1,{"$f":"AA516+AC517","v":355}]
[null,null,null,null,null,null,null,null,null,null,null,null,null,null,null,null,null,null,null,null,null,null,null,null,null,null,356,"2023-05-31",1,356]
[null,null,null,null,null,null,null,null,null,null,null,null,null,null,null,null,null,null,null,null,null,null,null,null,null,null,357,"2023-06-01",1,357]
[null,null,null,null,null,null,null,null,null,null,null,null,null,null,null,null,null,null,null,null,null,null,null,null,null,null,358,"2023-06-02",1,358]
[null,null,null,null,null,null,null,null,null,null,null,null,null,null,null,null,null,null,null,null,null,null,null,null,null,null,358,"2023-06-03",0,358]
[null,null,null,null,null,null,null,null,null,null,null,null,null,null,null,null,null,null,null,null,null,null,null,null,null,null,358,"2023-06-04",0,358]
[null,null,null,null,null,null,null,null,null,null,null,null,null,null,null,null,null,null,null,null,null,null,null,null,null,null,359,"2023-06-05",1,359]
[null,null,null,null,null,null,null,null,null,null,null,null,null,null,null,null,null,null,null,null,null,null,null,null,null,null,360,"2023-06-06",1,360]
[null,null,null,null,null,null,null,null,null,null,null,null,null,null,null,null,null,null,null,null,null,null,null,null,null,null,361,"2023-06-07",1,361]
[null,null,null,null,null,null,null,null,null,null,null,null,null,null,null,null,null,null,null,null,null,null,null,null,null,null,362,"2023-06-08",1,362]
[null,null,null,null,null,null,null,null,null,null,null,null,null,null,null,null,null,null,null,null,null,null,null,null,null,null,363,"2023-06-09",1,363]
[null,null,null,null,null,null,null,null,null,null,null,null,null,null,null,null,null,null,null,null,null,null,null,null,null,null,363,"2023-06-10",0,363]
[null,null,null,null,null,null,null,null,null,null,null,null,null,null,null,null,null,null,null,null,null,null,null,null,null,null,363,"2023-06-11",0,363]
[null,null,null,null,null,null,null,null,null,null,null,null,null,null,null,null,null,null,null,null,null,null,null,null,null,null,364,"2023-06-12",1,364]
[null,null,null,null,null,null,null,null,null,null,null,null,null,null,null,null,null,null,null,null,null,null,null,null,null,null,365,"2023-06-13",1,365]
[null,null,null,null,null,null,null,null,null,null,null,null,null,null,null,null,null,null,null,null,null,null,null,null,null,null,366,"2023-06-14",1,366]
[null,null,null,null,null,null,null,null,null,null,null,null,null,null,null,null,null,null,null,null,null,null,null,null,null,null,367,"2023-06-15",1,367]
[null,null,null,null,null,null,null,null,null,null,null,null,null,null,null,null,null,null,null,null,null,null,null,null,null,null,368,"2023-06-16",1,368]
[null,null,null,null,null,null,null,null,null,null,null,null,null,null,null,null,null,null,null,null,null,null,null,null,null,null,368,"2023-06-17",0,368]
[null,null,null,null,null,null,null,null,null,null,null,null,null,null,null,null,null,null,null,null,null,null,null,null,null,null,368,"2023-06-18",0,368]
[null,null,null,null,null,null,null,null,null,null,null,null,null,null,null,null,null,null,null,null,null,null,null,null,null,null,369,"2023-06-19",1,369]
[null,null,null,null,null,null,null,null,null,null,null,null,null,null,null,null,null,null,null,null,null,null,null,null,null,null,370,"2023-06-20",1,370]
[null,null,null,null,null,null,null,null,null,null,null,null,null,null,null,null,null,null,null,null,null,null,null,null,null,null,371,"2023-06-21",1,371]
[null,null,null,null,null,null,null,null,null,null,null,null,null,null,null,null,null,null,null,null,null,null,null,null,null,null,372,"2023-06-22",1,372]
[null,null,null,null,null,null,null,null,null,null,null,null,null,null,null,null,null,null,null,null,null,null,null,null,null,null,373,"2023-06-23",1,373]
[null,null,null,null,null,null,null,null,null,null,null,null,null,null,null,null,null,null,null,null,null,null,null,null,null,null,373,"2023-06-24",0,373]
[null,null,null,null,null,null,null,null,null,null,null,null,null,null,null,null,null,null,null,null,null,null,null,null,null,null,373,"2023-06-25",0,373]
[null,null,null,null,null,null,null,null,null,null,null,null,null,null,null,null,null,null,null,null,null,null,null,null,null,null,374,"2023-06-26",1,374]
[null,null,null,null,null,null,null,null,null,null,null,null,null,null,null,null,null,null,null,null,null,null,null,null,null,null,375,"2023-06-27",1,375]
[null,null,null,null,null,null,null,null,null,null,null,null,null,null,null,null,null,null,null,null,null,null,null,null,null,null,376,"2023-06-28",1,376]
[null,null,null,null,null,null,null,null,null,null,null,null,null,null,null,null,null,null,null,null,null,null,null,null,null,null,377,"2023-06-29",1,377]
[null,null,null,null,null,null,null,null,null,null,null,null,null,null,null,null,null,null,null,null,null,null,null,null,null,null,378,"2023-06-30",1,378]
[null,null,null,null,null,null,null,null,null,null,null,null,null,null,null,null,null,null,null,null,null,null,null,null,null,null,378,"2023-07-01",0,378]
[null,null,null,null,null,null,null,null,null,null,null,null,null,null,null,null,null,null,null,null,null,null,null,null,null,null,378,"2023-07-02",0,378]
[null,null,null,null,null,null,null,null,null,null,null,null,null,null,null,null,null,null,null,null,null,null,null,null,null,null,379,"2023-07-03",1,379]
[null,null,null,null,null,null,null,null,null,null,null,null,null,null,null,null,null,null,null,null,null,null,null,null,null,null,380,"2023-07-04",1,380]
[null,null,null,null,null,null,null,null,null,null,null,null,null,null,null,null,null,null,null,null,null,null,null,null,null,null,380,"2023-07-05",0,380]
[null,null,null,null,null,null,null,null,null,null,null,null,null,null,null,null,null,null,null,null,null,null,null,null,null,null,380,"2023-07-06",0,380]
[null,null,null,null,null,null,null,null,null,null,null,null,null,null,null,null,null,null,null,null,null,null,null,null,null,null,381,"2023-07-07",1,381]
[null,null,null,null,null,null,null,null,null,null,null,null,null,null,null,null,null,null,null,null,null,null,null,null,null,null,381,"2023-07-08",0,381]
[null,null,null,null,null,null,null,null,null,null,null,null,null,null,null,null,null,null,null,null,null,null,null,null,null,null,381,"2023-07-09",0,381]
[null,null,null,null,null,null,null,null,null,null,null,null,null,null,null,null,null,null,null,null,null,null,null,null,null,null,382,"2023-07-10",1,382]
[null,null,null,null,null,null,null,null,null,null,null,null,null,null,null,null,null,null,null,null,null,null,null,null,null,null,383,"2023-07-11",1,383]
[null,null,null,null,null,null,null,null,null,null,null,null,null,null,null,null,null,null,null,null,null,null,null,null,null,null,384,"2023-07-12",1,384]
[null,null,null,null,null,null,null,null,null,null,null,null,null,null,null,null,null,null,null,null,null,null,null,null,null,null,385,"2023-07-13",1,385]
[null,null,null,null,null,null,null,null,null,null,null,null,null,null,null,null,null,null,null,null,null,null,null,null,null,null,386,"2023-07-14",1,386]
[null,null,null,null,null,null,null,null,null,null,null,null,null,null,null,null,null,null,null,null,null,null,null,null,null,null,386,"2023-07-15",0,386]
[null,null,null,null,null,null,null,null,null,null,null,null,null,null,null,null,null,null,null,null,null,null,null,null,null,null,386,"2023-07-16",0,386]
[null,null,null,null,null,null,null,null,null,null,null,null,null,null,null,null,null,null,null,null,null,null,null,null,null,null,387,"2023-07-17",1,387]
[null,null,null,null,null,null,null,null,null,null,null,null,null,null,null,null,null,null,null,null,null,null,null,null,null,null,388,"2023-07-18",1,388]
[null,null,null,null,null,null,null,null,null,null,null,null,null,null,null,null,null,null,null,null,null,null,null,null,null,null,389,"2023-07-19",1,389]
[null,null,null,null,null,null,null,null,null,null,null,null,null,null,null,null,null,null,null,null,null,null,null,null,null,null,390,"2023-07-20",1,390]
[null,null,null,null,null,null,null,null,null,null,null,null,null,null,null,null,null,null,null,null,null,null,null,null,null,null,391,"2023-07-21",1,391]